{"text_format":"3","workbook":"xlsx","n_sheets":3,"sheets":["Créditos","Empresas Listadas","Mercado Internacional (BDRs)"],"not_rendered":{"images":4,"macros":1},"read":"whole","date_system":"1900"}

{"sheet":"Créditos","index":0,"n_rows":11,"n_cols":3,"rows_kept":11}
[]
["Planilha desenvolvida e mantida pela"]
[]
[]
[]
[]
[]
[null,"Contato:","atendimento@inovar.net"]
[null,"Site:","https://inovar.net"]
[null,"Desenvolvedor:","Gledson Leitão"]
[null,"Versão:","1.3.0"]

{"sheet":"Empresas Listadas","index":1,"n_rows":440,"n_cols":9,"rows_kept":440}
[null,"Lista atualizada em","2019-01-14",{"$nulls":3},"(*) Cotação por lote de mil","(MA) Cia. Bovespa Mais","(DR2) BDR Nível 2"]
["Todas as empresas listadas na BOVESPA",null,"Fonte",{"$nulls":3},"(NM) Cia. Novo Mercado","(M2) Cia. Bovespa Mais Nível 2","(DR3) BDR Nível 3"]
[{"$nulls":6},"(N1) Cia. Nível 1 de Governança Corporativa","(MB) Cia. Balcão Org. Tradicional","(DRN) BDR Não Patrocinado"]
["Razão Social","Nome de Pregão","Segmento","Link Fundamentus","Favorita?",null,"(N2) Cia. Nível 2 de Governança Corporativa","(DR1) BDR Nível 1"]
["524 PARTICIPACOES S.A.","524 PARTICIP","MB",{"$f":"HYPERLINK(CONCATENATE(\"http://www.fundamentus.com.br/detalhes.php?papel=\",Tabela1[[#This Row],[Nome de Pregão]]),\"Clique aqui\")","v":"Clique aqui"}]
["ADVANCED DIGITAL HEALTH MEDICINA PREVENTIVA S.A.","ADVANCED-DH",null,{"$f":"HYPERLINK(CONCATENATE(\"http://www.fundamentus.com.br/detalhes.php?papel=\",Tabela1[[#This Row],[Nome de Pregão]]),\"Clique aqui\")","v":"Clique aqui"}]
["AES TIETE ENERGIA SA","AES TIETE E","N2",{"$f":"HYPERLINK(CONCATENATE(\"http://www.fundamentus.com.br/detalhes.php?papel=\",Tabela1[[#This Row],[Nome de Pregão]]),\"Clique aqui\")","v":"Clique aqui"}]
["AFLUENTE TRANSMISSÃO DE ENERGIA ELÉTRICA S/A","AFLUENTE T",null,{"$f":"HYPERLINK(CONCATENATE(\"http://www.fundamentus.com.br/detalhes.php?papel=\",Tabela1[[#This Row],[Nome de Pregão]]),\"Clique aqui\")","v":"Clique aqui"}]
["ALEF S.A.","ALEF S/A","MB",{"$f":"HYPERLINK(CONCATENATE(\"http://www.fundamentus.com.br/detalhes.php?papel=\",Tabela1[[#This Row],[Nome de Pregão]]),\"Clique aqui\")","v":"Clique aqui"}]
["ALFA HOLDINGS S.A.","ALFA HOLDING",null,{"$f":"HYPERLINK(CONCATENATE(\"http://www.fundamentus.com.br/detalhes.php?papel=\",Tabela1[[#This Row],[Nome de Pregão]]),\"Clique aqui\")","v":"Clique aqui"}]
["ALGAR TELECOM S/A","ALGAR TELEC",null,{"$f":"HYPERLINK(CONCATENATE(\"http://www.fundamentus.com.br/detalhes.php?papel=\",Tabela1[[#This Row],[Nome de Pregão]]),\"Clique aqui\")","v":"Clique aqui"}]
["ALIANSCE SHOPPING CENTERS S.A.","ALIANSCE","NM",{"$f":"HYPERLINK(CONCATENATE(\"http://www.fundamentus.com.br/detalhes.php?papel=\",Tabela1[[#This Row],[Nome de Pregão]]),\"Clique aqui\")","v":"Clique aqui"}]
["ALPARGATAS S.A.","ALPARGATAS","N1",{"$f":"HYPERLINK(CONCATENATE(\"http://www.fundamentus.com.br/detalhes.php?papel=\",Tabela1[[#This Row],[Nome de Pregão]]),\"Clique aqui\")","v":"Clique aqui"}]
["ALPER CONSULTORIA E CORRETORA DE SEGUROS S.A.","ALPER S.A.","NM",{"$f":"HYPERLINK(CONCATENATE(\"http://www.fundamentus.com.br/detalhes.php?papel=\",Tabela1[[#This Row],[Nome de Pregão]]),\"Clique aqui\")","v":"Clique aqui"}]
["ALTERE SECURITIZADORA S.A.","ALTERE SEC",null,{"$f":"HYPERLINK(CONCATENATE(\"http://www.fundamentus.com.br/detalhes.php?papel=\",Tabela1[[#This Row],[Nome de Pregão]]),\"Clique aqui\")","v":"Clique aqui"}]
["ALUPAR INVESTIMENTO S/A","ALUPAR","N2",{"$f":"HYPERLINK(CONCATENATE(\"http://www.fundamentus.com.br/detalhes.php?papel=\",Tabela1[[#This Row],[Nome de Pregão]]),\"Clique aqui\")","v":"Clique aqui"}]
["AMBEV S.A.","AMBEV S/A",null,{"$f":"HYPERLINK(CONCATENATE(\"http://www.fundamentus.com.br/detalhes.php?papel=\",Tabela1[[#This Row],[Nome de Pregão]]),\"Clique aqui\")","v":"Clique aqui"}]
["AMPLA ENERGIA E SERVICOS S.A.","AMPLA ENERG",null,{"$f":"HYPERLINK(CONCATENATE(\"http://www.fundamentus.com.br/detalhes.php?papel=\",Tabela1[[#This Row],[Nome de Pregão]]),\"Clique aqui\")","v":"Clique aqui"}]
["ANDRADE GUTIERREZ CONCESSOES S.A.","AGCONCESSOES","MB",{"$f":"HYPERLINK(CONCATENATE(\"http://www.fundamentus.com.br/detalhes.php?papel=\",Tabela1[[#This Row],[Nome de Pregão]]),\"Clique aqui\")","v":"Clique aqui"}]
["ANDRADE GUTIERREZ PARTICIPACOES S.A.","AGPART","MB",{"$f":"HYPERLINK(CONCATENATE(\"http://www.fundamentus.com.br/detalhes.php?papel=\",Tabela1[[#This Row],[Nome de Pregão]]),\"Clique aqui\")","v":"Clique aqui"}]
["ANIMA HOLDING S.A.","ANIMA","NM",{"$f":"HYPERLINK(CONCATENATE(\"http://www.fundamentus.com.br/detalhes.php?papel=\",Tabela1[[#This Row],[Nome de Pregão]]),\"Clique aqui\")","v":"Clique aqui"}]
["AREZZO INDÚSTRIA E COMÉRCIO S.A.","AREZZO CO","NM",{"$f":"HYPERLINK(CONCATENATE(\"http://www.fundamentus.com.br/detalhes.php?papel=\",Tabela1[[#This Row],[Nome de Pregão]]),\"Clique aqui\")","v":"Clique aqui"}]
["ATACADÃO S.A.","CARREFOUR BR","NM",{"$f":"HYPERLINK(CONCATENATE(\"http://www.fundamentus.com.br/detalhes.php?papel=\",Tabela1[[#This Row],[Nome de Pregão]]),\"Clique aqui\")","v":"Clique aqui"}]
["ATOM EMPREENDIMENTOS E PARTICIPAÇÕES S.A.","ATOMPAR",null,{"$f":"HYPERLINK(CONCATENATE(\"http://www.fundamentus.com.br/detalhes.php?papel=\",Tabela1[[#This Row],[Nome de Pregão]]),\"Clique aqui\")","v":"Clique aqui"}]
["AZEVEDO E TRAVASSOS S.A.","AZEVEDO",null,{"$f":"HYPERLINK(CONCATENATE(\"http://www.fundamentus.com.br/detalhes.php?papel=\",Tabela1[[#This Row],[Nome de Pregão]]),\"Clique aqui\")","v":"Clique aqui"}]
["AZUL S.A.","AZUL","N2",{"$f":"HYPERLINK(CONCATENATE(\"http://www.fundamentus.com.br/detalhes.php?papel=\",Tabela1[[#This Row],[Nome de Pregão]]),\"Clique aqui\")","v":"Clique aqui"}]
["B2W - COMPANHIA DIGITAL","B2W DIGITAL","NM",{"$f":"HYPERLINK(CONCATENATE(\"http://www.fundamentus.com.br/detalhes.php?papel=\",Tabela1[[#This Row],[Nome de Pregão]]),\"Clique aqui\")","v":"Clique aqui"}]
["B3 S.A. - BRASIL, BOLSA, BALCÃO","B3","NM",{"$f":"HYPERLINK(CONCATENATE(\"http://www.fundamentus.com.br/detalhes.php?papel=\",Tabela1[[#This Row],[Nome de Pregão]]),\"Clique aqui\")","v":"Clique aqui"}]
["BAHEMA S.A.","BAHEMA","MA",{"$f":"HYPERLINK(CONCATENATE(\"http://www.fundamentus.com.br/detalhes.php?papel=\",Tabela1[[#This Row],[Nome de Pregão]]),\"Clique aqui\")","v":"Clique aqui"}]
["BANCO INTER S.A.","BANCO INTER","N1",{"$f":"HYPERLINK(CONCATENATE(\"http://www.fundamentus.com.br/detalhes.php?papel=\",Tabela1[[#This Row],[Nome de Pregão]]),\"Clique aqui\")","v":"Clique aqui"}]
["BANESTES S.A. - BCO EST ESPIRITO SANTO","BANESTES",null,{"$f":"HYPERLINK(CONCATENATE(\"http://www.fundamentus.com.br/detalhes.php?papel=\",Tabela1[[#This Row],[Nome de Pregão]]),\"Clique aqui\")","v":"Clique aqui"}]
["BARDELLA S.A. INDUSTRIAS MECANICAS","BARDELLA",null,{"$f":"HYPERLINK(CONCATENATE(\"http://www.fundamentus.com.br/detalhes.php?papel=\",Tabela1[[#This Row],[Nome de Pregão]]),\"Clique aqui\")","v":"Clique aqui"}]
["BATTISTELLA ADM PARTICIPACOES S.A.","BATTISTELLA",null,{"$f":"HYPERLINK(CONCATENATE(\"http://www.fundamentus.com.br/detalhes.php?papel=\",Tabela1[[#This Row],[Nome de Pregão]]),\"Clique aqui\")","v":"Clique aqui"}]
["BAUMER S.A.","BAUMER",null,{"$f":"HYPERLINK(CONCATENATE(\"http://www.fundamentus.com.br/detalhes.php?papel=\",Tabela1[[#This Row],[Nome de Pregão]]),\"Clique aqui\")","v":"Clique aqui"}]
["BB SEGURIDADE PARTICIPAÇÕES S.A.","BBSEGURIDADE","NM",{"$f":"HYPERLINK(CONCATENATE(\"http://www.fundamentus.com.br/detalhes.php?papel=\",Tabela1[[#This Row],[Nome de Pregão]]),\"Clique aqui\")","v":"Clique aqui"}]
["BCO ABC BRASIL S.A.","ABC BRASIL","N2",{"$f":"HYPERLINK(CONCATENATE(\"http://www.fundamentus.com.br/detalhes.php?papel=\",Tabela1[[#This Row],[Nome de Pregão]]),\"Clique aqui\")","v":"Clique aqui"}]
["BCO ALFA DE INVESTIMENTO S.A.","ALFA INVEST",null,{"$f":"HYPERLINK(CONCATENATE(\"http://www.fundamentus.com.br/detalhes.php?papel=\",Tabela1[[#This Row],[Nome de Pregão]]),\"Clique aqui\")","v":"Clique aqui"}]
["BCO AMAZONIA S.A.","AMAZONIA",null,{"$f":"HYPERLINK(CONCATENATE(\"http://www.fundamentus.com.br/detalhes.php?papel=\",Tabela1[[#This Row],[Nome de Pregão]]),\"Clique aqui\")","v":"Clique aqui"}]
["BCO BRADESCO S.A.","BRADESCO","N1",{"$f":"HYPERLINK(CONCATENATE(\"http://www.fundamentus.com.br/detalhes.php?papel=\",Tabela1[[#This Row],[Nome de Pregão]]),\"Clique aqui\")","v":"Clique aqui"}]
["BCO BRASIL S.A.","BRASIL","NM",{"$f":"HYPERLINK(CONCATENATE(\"http://www.fundamentus.com.br/detalhes.php?papel=\",Tabela1[[#This Row],[Nome de Pregão]]),\"Clique aqui\")","v":"Clique aqui"}]
["BCO BTG PACTUAL S.A.","BTGP BANCO",null,{"$f":"HYPERLINK(CONCATENATE(\"http://www.fundamentus.com.br/detalhes.php?papel=\",Tabela1[[#This Row],[Nome de Pregão]]),\"Clique aqui\")","v":"Clique aqui"}]
["BCO ESTADO DE SERGIPE S.A. - BANESE","BANESE",null,{"$f":"HYPERLINK(CONCATENATE(\"http://www.fundamentus.com.br/detalhes.php?papel=\",Tabela1[[#This Row],[Nome de Pregão]]),\"Clique aqui\")","v":"Clique aqui"}]
["BCO ESTADO DO PARA S.A.","BANPARA",null,{"$f":"HYPERLINK(CONCATENATE(\"http://www.fundamentus.com.br/detalhes.php?papel=\",Tabela1[[#This Row],[Nome de Pregão]]),\"Clique aqui\")","v":"Clique aqui"}]
["BCO ESTADO DO RIO GRANDE DO SUL S.A.","BANRISUL","N1",{"$f":"HYPERLINK(CONCATENATE(\"http://www.fundamentus.com.br/detalhes.php?papel=\",Tabela1[[#This Row],[Nome de Pregão]]),\"Clique aqui\")","v":"Clique aqui"}]
["BCO INDUSVAL S.A.","INDUSVAL","N2",{"$f":"HYPERLINK(CONCATENATE(\"http://www.fundamentus.com.br/detalhes.php?papel=\",Tabela1[[#This Row],[Nome de Pregão]]),\"Clique aqui\")","v":"Clique aqui"}]
["BCO MERCANTIL DE INVESTIMENTOS S.A.","MERC INVEST",null,{"$f":"HYPERLINK(CONCATENATE(\"http://www.fundamentus.com.br/detalhes.php?papel=\",Tabela1[[#This Row],[Nome de Pregão]]),\"Clique aqui\")","v":"Clique aqui"}]
["BCO MERCANTIL DO BRASIL S.A.","MERC BRASIL",null,{"$f":"HYPERLINK(CONCATENATE(\"http://www.fundamentus.com.br/detalhes.php?papel=\",Tabela1[[#This Row],[Nome de Pregão]]),\"Clique aqui\")","v":"Clique aqui"}]
["BCO NORDESTE DO BRASIL S.A.","NORD BRASIL",null,{"$f":"HYPERLINK(CONCATENATE(\"http://www.fundamentus.com.br/detalhes.php?papel=\",Tabela1[[#This Row],[Nome de Pregão]]),\"Clique aqui\")","v":"Clique aqui"}]
["BCO PAN S.A.","BANCO PAN","N1",{"$f":"HYPERLINK(CONCATENATE(\"http://www.fundamentus.com.br/detalhes.php?papel=\",Tabela1[[#This Row],[Nome de Pregão]]),\"Clique aqui\")","v":"Clique aqui"}]
["BCO PATAGONIA S.A.","PATAGONIA","DR3",{"$f":"HYPERLINK(CONCATENATE(\"http://www.fundamentus.com.br/detalhes.php?papel=\",Tabela1[[#This Row],[Nome de Pregão]]),\"Clique aqui\")","v":"Clique aqui"}]
["BCO PINE S.A.","PINE","N2",{"$f":"HYPERLINK(CONCATENATE(\"http://www.fundamentus.com.br/detalhes.php?papel=\",Tabela1[[#This Row],[Nome de Pregão]]),\"Clique aqui\")","v":"Clique aqui"}]
["BCO SANTANDER (BRASIL) S.A.","SANTANDER BR",null,{"$f":"HYPERLINK(CONCATENATE(\"http://www.fundamentus.com.br/detalhes.php?papel=\",Tabela1[[#This Row],[Nome de Pregão]]),\"Clique aqui\")","v":"Clique aqui"}]
["BETA SECURITIZADORA S.A.","BETA SECURIT",null,{"$f":"HYPERLINK(CONCATENATE(\"http://www.fundamentus.com.br/detalhes.php?papel=\",Tabela1[[#This Row],[Nome de Pregão]]),\"Clique aqui\")","v":"Clique aqui"}]
["BETAPART PARTICIPACOES S.A.","BETAPART","MB",{"$f":"HYPERLINK(CONCATENATE(\"http://www.fundamentus.com.br/detalhes.php?papel=\",Tabela1[[#This Row],[Nome de Pregão]]),\"Clique aqui\")","v":"Clique aqui"}]
["BICICLETAS MONARK S.A.","BIC MONARK",null,{"$f":"HYPERLINK(CONCATENATE(\"http://www.fundamentus.com.br/detalhes.php?papel=\",Tabela1[[#This Row],[Nome de Pregão]]),\"Clique aqui\")","v":"Clique aqui"}]
["BIOMM S.A.","BIOMM","MA",{"$f":"HYPERLINK(CONCATENATE(\"http://www.fundamentus.com.br/detalhes.php?papel=\",Tabela1[[#This Row],[Nome de Pregão]]),\"Clique aqui\")","v":"Clique aqui"}]
["BIOSEV S.A.","BIOSEV","NM",{"$f":"HYPERLINK(CONCATENATE(\"http://www.fundamentus.com.br/detalhes.php?papel=\",Tabela1[[#This Row],[Nome de Pregão]]),\"Clique aqui\")","v":"Clique aqui"}]
["BIOTOSCANA INVESTMENTS S.A.","BIOTOSCANA","DR3",{"$f":"HYPERLINK(CONCATENATE(\"http://www.fundamentus.com.br/detalhes.php?papel=\",Tabela1[[#This Row],[Nome de Pregão]]),\"Clique aqui\")","v":"Clique aqui"}]
["BK BRASIL OPERAÇÃO E ASSESSORIA A RESTAURANTES SA","BK BRASIL","NM",{"$f":"HYPERLINK(CONCATENATE(\"http://www.fundamentus.com.br/detalhes.php?papel=\",Tabela1[[#This Row],[Nome de Pregão]]),\"Clique aqui\")","v":"Clique aqui"}]
["BNDES PARTICIPACOES S.A. - BNDESPAR","BNDESPAR","MB",{"$f":"HYPERLINK(CONCATENATE(\"http://www.fundamentus.com.br/detalhes.php?papel=\",Tabela1[[#This Row],[Nome de Pregão]]),\"Clique aqui\")","v":"Clique aqui"}]
["BOMBRIL S.A.","BOMBRIL",null,{"$f":"HYPERLINK(CONCATENATE(\"http://www.fundamentus.com.br/detalhes.php?papel=\",Tabela1[[#This Row],[Nome de Pregão]]),\"Clique aqui\")","v":"Clique aqui"}]
["BR HOME CENTERS S.A.","BR HOME","MA",{"$f":"HYPERLINK(CONCATENATE(\"http://www.fundamentus.com.br/detalhes.php?papel=\",Tabela1[[#This Row],[Nome de Pregão]]),\"Clique aqui\")","v":"Clique aqui"}]
["BR MALLS PARTICIPACOES S.A.","BR MALLS PAR","NM",{"$f":"HYPERLINK(CONCATENATE(\"http://www.fundamentus.com.br/detalhes.php?papel=\",Tabela1[[#This Row],[Nome de Pregão]]),\"Clique aqui\")","v":"Clique aqui"}]
["BR PROPERTIES S.A.","BR PROPERT","NM",{"$f":"HYPERLINK(CONCATENATE(\"http://www.fundamentus.com.br/detalhes.php?papel=\",Tabela1[[#This Row],[Nome de Pregão]]),\"Clique aqui\")","v":"Clique aqui"}]
["BRADESCO LEASING S.A. ARREND MERCANTIL","BRADESCO LSG",null,{"$f":"HYPERLINK(CONCATENATE(\"http://www.fundamentus.com.br/detalhes.php?papel=\",Tabela1[[#This Row],[Nome de Pregão]]),\"Clique aqui\")","v":"Clique aqui"}]
["BRADESPAR S.A.","BRADESPAR","N1",{"$f":"HYPERLINK(CONCATENATE(\"http://www.fundamentus.com.br/detalhes.php?papel=\",Tabela1[[#This Row],[Nome de Pregão]]),\"Clique aqui\")","v":"Clique aqui"}]
["BRASIL BROKERS PARTICIPACOES S.A.","BR BROKERS","NM",{"$f":"HYPERLINK(CONCATENATE(\"http://www.fundamentus.com.br/detalhes.php?papel=\",Tabela1[[#This Row],[Nome de Pregão]]),\"Clique aqui\")","v":"Clique aqui"}]
["BRASIL PHARMA S.A.","BR PHARMA","NM",{"$f":"HYPERLINK(CONCATENATE(\"http://www.fundamentus.com.br/detalhes.php?papel=\",Tabela1[[#This Row],[Nome de Pregão]]),\"Clique aqui\")","v":"Clique aqui"}]
["BRASILAGRO - CIA BRAS DE PROP AGRICOLAS","BRASILAGRO","NM",{"$f":"HYPERLINK(CONCATENATE(\"http://www.fundamentus.com.br/detalhes.php?papel=\",Tabela1[[#This Row],[Nome de Pregão]]),\"Clique aqui\")","v":"Clique aqui"}]
["BRASKEM S.A.","BRASKEM","N1",{"$f":"HYPERLINK(CONCATENATE(\"http://www.fundamentus.com.br/detalhes.php?papel=\",Tabela1[[#This Row],[Nome de Pregão]]),\"Clique aqui\")","v":"Clique aqui"}]
["BRAZIL REALTY CIA SECURIT. CRÉD. IMOBILIÁRIOS","BRAZIL REALT",null,{"$f":"HYPERLINK(CONCATENATE(\"http://www.fundamentus.com.br/detalhes.php?papel=\",Tabela1[[#This Row],[Nome de Pregão]]),\"Clique aqui\")","v":"Clique aqui"}]
["BRAZILIAN FINANCE E REAL ESTATE S.A.","BRAZILIAN FR",null,{"$f":"HYPERLINK(CONCATENATE(\"http://www.fundamentus.com.br/detalhes.php?papel=\",Tabela1[[#This Row],[Nome de Pregão]]),\"Clique aqui\")","v":"Clique aqui"}]
["BRAZILIAN SECURITIES CIA SECURITIZACAO","BRAZILIAN SC",null,{"$f":"HYPERLINK(CONCATENATE(\"http://www.fundamentus.com.br/detalhes.php?papel=\",Tabela1[[#This Row],[Nome de Pregão]]),\"Clique aqui\")","v":"Clique aqui"}]
["BRB BCO DE BRASILIA S.A.","BRB BANCO",null,{"$f":"HYPERLINK(CONCATENATE(\"http://www.fundamentus.com.br/detalhes.php?papel=\",Tabela1[[#This Row],[Nome de Pregão]]),\"Clique aqui\")","v":"Clique aqui"}]
["BRC SECURITIZADORA S.A.","BRC SECURIT",null,{"$f":"HYPERLINK(CONCATENATE(\"http://www.fundamentus.com.br/detalhes.php?papel=\",Tabela1[[#This Row],[Nome de Pregão]]),\"Clique aqui\")","v":"Clique aqui"}]
["BRF S.A.","BRF SA","NM",{"$f":"HYPERLINK(CONCATENATE(\"http://www.fundamentus.com.br/detalhes.php?papel=\",Tabela1[[#This Row],[Nome de Pregão]]),\"Clique aqui\")","v":"Clique aqui"}]
["BRPR 55 SECURITIZADORA CRED IMOB S.A.","BRPR 55 SEC",null,{"$f":"HYPERLINK(CONCATENATE(\"http://www.fundamentus.com.br/detalhes.php?papel=\",Tabela1[[#This Row],[Nome de Pregão]]),\"Clique aqui\")","v":"Clique aqui"}]
["BRPR 56 SECURITIZADORA CRED IMOB S.A.","BRPR 56 SEC",null,{"$f":"HYPERLINK(CONCATENATE(\"http://www.fundamentus.com.br/detalhes.php?papel=\",Tabela1[[#This Row],[Nome de Pregão]]),\"Clique aqui\")","v":"Clique aqui"}]
["BRQ SOLUCOES EM INFORMATICA S.A.","BRQ","MA",{"$f":"HYPERLINK(CONCATENATE(\"http://www.fundamentus.com.br/detalhes.php?papel=\",Tabela1[[#This Row],[Nome de Pregão]]),\"Clique aqui\")","v":"Clique aqui"}]
["BV LEASING - ARRENDAMENTO MERCANTIL S.A.","BV LEASING",null,{"$f":"HYPERLINK(CONCATENATE(\"http://www.fundamentus.com.br/detalhes.php?papel=\",Tabela1[[#This Row],[Nome de Pregão]]),\"Clique aqui\")","v":"Clique aqui"}]
["CABINDA PARTICIPACOES S.A.","CABINDA PART","MB",{"$f":"HYPERLINK(CONCATENATE(\"http://www.fundamentus.com.br/detalhes.php?papel=\",Tabela1[[#This Row],[Nome de Pregão]]),\"Clique aqui\")","v":"Clique aqui"}]
["CACHOEIRA PAULISTA TRANSMISSORA ENERGIA S.A.","CACHOEIRA","MB",{"$f":"HYPERLINK(CONCATENATE(\"http://www.fundamentus.com.br/detalhes.php?papel=\",Tabela1[[#This Row],[Nome de Pregão]]),\"Clique aqui\")","v":"Clique aqui"}]
["CACONDE PARTICIPACOES S.A.","CACONDE PART","MB",{"$f":"HYPERLINK(CONCATENATE(\"http://www.fundamentus.com.br/detalhes.php?papel=\",Tabela1[[#This Row],[Nome de Pregão]]),\"Clique aqui\")","v":"Clique aqui"}]
["CAMBUCI S.A.","CAMBUCI",null,{"$f":"HYPERLINK(CONCATENATE(\"http://www.fundamentus.com.br/detalhes.php?papel=\",Tabela1[[#This Row],[Nome de Pregão]]),\"Clique aqui\")","v":"Clique aqui"}]
["CAMIL ALIMENTOS S.A.","CAMIL","NM",{"$f":"HYPERLINK(CONCATENATE(\"http://www.fundamentus.com.br/detalhes.php?papel=\",Tabela1[[#This Row],[Nome de Pregão]]),\"Clique aqui\")","v":"Clique aqui"}]
["CAPITALPART PARTICIPACOES S.A.","CAPITALPART","MB",{"$f":"HYPERLINK(CONCATENATE(\"http://www.fundamentus.com.br/detalhes.php?papel=\",Tabela1[[#This Row],[Nome de Pregão]]),\"Clique aqui\")","v":"Clique aqui"}]
["CCR S.A.","CCR SA","NM",{"$f":"HYPERLINK(CONCATENATE(\"http://www.fundamentus.com.br/detalhes.php?papel=\",Tabela1[[#This Row],[Nome de Pregão]]),\"Clique aqui\")","v":"Clique aqui"}]
["CCX CARVÃO DA COLÔMBIA S.A.","CCX CARVAO","NM",{"$f":"HYPERLINK(CONCATENATE(\"http://www.fundamentus.com.br/detalhes.php?papel=\",Tabela1[[#This Row],[Nome de Pregão]]),\"Clique aqui\")","v":"Clique aqui"}]
["CELULOSE IRANI S.A.","CELUL IRANI",null,{"$f":"HYPERLINK(CONCATENATE(\"http://www.fundamentus.com.br/detalhes.php?papel=\",Tabela1[[#This Row],[Nome de Pregão]]),\"Clique aqui\")","v":"Clique aqui"}]
["CEMEPE INVESTIMENTOS S.A.","CEMEPE",null,{"$f":"HYPERLINK(CONCATENATE(\"http://www.fundamentus.com.br/detalhes.php?papel=\",Tabela1[[#This Row],[Nome de Pregão]]),\"Clique aqui\")","v":"Clique aqui"}]
["CEMIG DISTRIBUICAO S.A.","CEMIG DIST",null,{"$f":"HYPERLINK(CONCATENATE(\"http://www.fundamentus.com.br/detalhes.php?papel=\",Tabela1[[#This Row],[Nome de Pregão]]),\"Clique aqui\")","v":"Clique aqui"}]
["CEMIG GERACAO E TRANSMISSAO S.A.","CEMIG GT",null,{"$f":"HYPERLINK(CONCATENATE(\"http://www.fundamentus.com.br/detalhes.php?papel=\",Tabela1[[#This Row],[Nome de Pregão]]),\"Clique aqui\")","v":"Clique aqui"}]
["CENTRAIS ELET BRAS S.A. - ELETROBRAS","ELETROBRAS","N1",{"$f":"HYPERLINK(CONCATENATE(\"http://www.fundamentus.com.br/detalhes.php?papel=\",Tabela1[[#This Row],[Nome de Pregão]]),\"Clique aqui\")","v":"Clique aqui"}]
["CENTRAIS ELET DE SANTA CATARINA S.A.","CELESC","N2",{"$f":"HYPERLINK(CONCATENATE(\"http://www.fundamentus.com.br/detalhes.php?papel=\",Tabela1[[#This Row],[Nome de Pregão]]),\"Clique aqui\")","v":"Clique aqui"}]
["CENTRAIS ELET DO PARA S.A. - CELPA","CELPA",null,{"$f":"HYPERLINK(CONCATENATE(\"http://www.fundamentus.com.br/detalhes.php?papel=\",Tabela1[[#This Row],[Nome de Pregão]]),\"Clique aqui\")","v":"Clique aqui"}]
["CENTRO DE IMAGEM DIAGNOSTICOS S.A.","ALLIAR","NM",{"$f":"HYPERLINK(CONCATENATE(\"http://www.fundamentus.com.br/detalhes.php?papel=\",Tabela1[[#This Row],[Nome de Pregão]]),\"Clique aqui\")","v":"Clique aqui"}]
["CESP - CIA ENERGETICA DE SAO PAULO","CESP","N1",{"$f":"HYPERLINK(CONCATENATE(\"http://www.fundamentus.com.br/detalhes.php?papel=\",Tabela1[[#This Row],[Nome de Pregão]]),\"Clique aqui\")","v":"Clique aqui"}]
["CIA BRASILEIRA DE DISTRIBUICAO","P.ACUCAR-CBD","N1",{"$f":"HYPERLINK(CONCATENATE(\"http://www.fundamentus.com.br/detalhes.php?papel=\",Tabela1[[#This Row],[Nome de Pregão]]),\"Clique aqui\")","v":"Clique aqui"}]
["CIA CATARINENSE DE AGUAS E SANEAM.-CASAN","CASAN",null,{"$f":"HYPERLINK(CONCATENATE(\"http://www.fundamentus.com.br/detalhes.php?papel=\",Tabela1[[#This Row],[Nome de Pregão]]),\"Clique aqui\")","v":"Clique aqui"}]
["CIA CELG DE PARTICIPACOES - CELGPAR","CELGPAR",null,{"$f":"HYPERLINK(CONCATENATE(\"http://www.fundamentus.com.br/detalhes.php?papel=\",Tabela1[[#This Row],[Nome de Pregão]]),\"Clique aqui\")","v":"Clique aqui"}]
["CIA DISTRIB DE GAS DO RIO DE JANEIRO-CEG","CEG",null,{"$f":"HYPERLINK(CONCATENATE(\"http://www.fundamentus.com.br/detalhes.php?papel=\",Tabela1[[#This Row],[Nome de Pregão]]),\"Clique aqui\")","v":"Clique aqui"}]
["CIA ELETRICIDADE EST. DA BAHIA - COELBA","COELBA",null,{"$f":"HYPERLINK(CONCATENATE(\"http://www.fundamentus.com.br/detalhes.php?papel=\",Tabela1[[#This Row],[Nome de Pregão]]),\"Clique aqui\")","v":"Clique aqui"}]
["CIA ENERGETICA DE BRASILIA","CEB",null,{"$f":"HYPERLINK(CONCATENATE(\"http://www.fundamentus.com.br/detalhes.php?papel=\",Tabela1[[#This Row],[Nome de Pregão]]),\"Clique aqui\")","v":"Clique aqui"}]
["CIA ENERGETICA DE MINAS GERAIS - CEMIG","CEMIG","N1",{"$f":"HYPERLINK(CONCATENATE(\"http://www.fundamentus.com.br/detalhes.php?papel=\",Tabela1[[#This Row],[Nome de Pregão]]),\"Clique aqui\")","v":"Clique aqui"}]
["CIA ENERGETICA DE PERNAMBUCO - CELPE","CELPE",null,{"$f":"HYPERLINK(CONCATENATE(\"http://www.fundamentus.com.br/detalhes.php?papel=\",Tabela1[[#This Row],[Nome de Pregão]]),\"Clique aqui\")","v":"Clique aqui"}]
["CIA ENERGETICA DO CEARA - COELCE","COELCE",null,{"$f":"HYPERLINK(CONCATENATE(\"http://www.fundamentus.com.br/detalhes.php?papel=\",Tabela1[[#This Row],[Nome de Pregão]]),\"Clique aqui\")","v":"Clique aqui"}]
["CIA ENERGETICA DO MARANHAO - CEMAR","CEMAR","MB",{"$f":"HYPERLINK(CONCATENATE(\"http://www.fundamentus.com.br/detalhes.php?papel=\",Tabela1[[#This Row],[Nome de Pregão]]),\"Clique aqui\")","v":"Clique aqui"}]
["CIA ENERGETICA DO RIO GDE NORTE - COSERN","COSERN",null,{"$f":"HYPERLINK(CONCATENATE(\"http://www.fundamentus.com.br/detalhes.php?papel=\",Tabela1[[#This Row],[Nome de Pregão]]),\"Clique aqui\")","v":"Clique aqui"}]
["CIA ESTADUAL DE DISTRIB ENER ELET-CEEE-D","CEEE-D","N1",{"$f":"HYPERLINK(CONCATENATE(\"http://www.fundamentus.com.br/detalhes.php?papel=\",Tabela1[[#This Row],[Nome de Pregão]]),\"Clique aqui\")","v":"Clique aqui"}]
["CIA ESTADUAL GER.TRANS.ENER.ELET-CEEE-GT","CEEE-GT","N1",{"$f":"HYPERLINK(CONCATENATE(\"http://www.fundamentus.com.br/detalhes.php?papel=\",Tabela1[[#This Row],[Nome de Pregão]]),\"Clique aqui\")","v":"Clique aqui"}]
["CIA FERRO LIGAS DA BAHIA - FERBASA","FERBASA","N1",{"$f":"HYPERLINK(CONCATENATE(\"http://www.fundamentus.com.br/detalhes.php?papel=\",Tabela1[[#This Row],[Nome de Pregão]]),\"Clique aqui\")","v":"Clique aqui"}]
["CIA FIACAO TECIDOS CEDRO CACHOEIRA","CEDRO","N1",{"$f":"HYPERLINK(CONCATENATE(\"http://www.fundamentus.com.br/detalhes.php?papel=\",Tabela1[[#This Row],[Nome de Pregão]]),\"Clique aqui\")","v":"Clique aqui"}]
["CIA GAS DE SAO PAULO - COMGAS","COMGAS",null,{"$f":"HYPERLINK(CONCATENATE(\"http://www.fundamentus.com.br/detalhes.php?papel=\",Tabela1[[#This Row],[Nome de Pregão]]),\"Clique aqui\")","v":"Clique aqui"}]
["CIA HABITASUL DE PARTICIPACOES","HABITASUL",null,{"$f":"HYPERLINK(CONCATENATE(\"http://www.fundamentus.com.br/detalhes.php?papel=\",Tabela1[[#This Row],[Nome de Pregão]]),\"Clique aqui\")","v":"Clique aqui"}]
["CIA HERING","CIA HERING","NM",{"$f":"HYPERLINK(CONCATENATE(\"http://www.fundamentus.com.br/detalhes.php?papel=\",Tabela1[[#This Row],[Nome de Pregão]]),\"Clique aqui\")","v":"Clique aqui"}]
["CIA INDUSTRIAL CATAGUASES","IND CATAGUAS",null,{"$f":"HYPERLINK(CONCATENATE(\"http://www.fundamentus.com.br/detalhes.php?papel=\",Tabela1[[#This Row],[Nome de Pregão]]),\"Clique aqui\")","v":"Clique aqui"}]
["CIA LOCAÇÃO DAS AMÉRICAS","LOCAMERICA","NM",{"$f":"HYPERLINK(CONCATENATE(\"http://www.fundamentus.com.br/detalhes.php?papel=\",Tabela1[[#This Row],[Nome de Pregão]]),\"Clique aqui\")","v":"Clique aqui"}]
["CIA MELHORAMENTOS DE SAO PAULO","MELHOR SP",null,{"$f":"HYPERLINK(CONCATENATE(\"http://www.fundamentus.com.br/detalhes.php?papel=\",Tabela1[[#This Row],[Nome de Pregão]]),\"Clique aqui\")","v":"Clique aqui"}]
["CIA PARANAENSE DE ENERGIA - COPEL","COPEL","N1",{"$f":"HYPERLINK(CONCATENATE(\"http://www.fundamentus.com.br/detalhes.php?papel=\",Tabela1[[#This Row],[Nome de Pregão]]),\"Clique aqui\")","v":"Clique aqui"}]
["CIA PARTICIPACOES ALIANCA DA BAHIA","PAR AL BAHIA",null,{"$f":"HYPERLINK(CONCATENATE(\"http://www.fundamentus.com.br/detalhes.php?papel=\",Tabela1[[#This Row],[Nome de Pregão]]),\"Clique aqui\")","v":"Clique aqui"}]
["CIA PAULISTA DE FORCA E LUZ","PAUL F LUZ",null,{"$f":"HYPERLINK(CONCATENATE(\"http://www.fundamentus.com.br/detalhes.php?papel=\",Tabela1[[#This Row],[Nome de Pregão]]),\"Clique aqui\")","v":"Clique aqui"}]
["CIA PIRATININGA DE FORCA E LUZ","CPFL PIRATIN",null,{"$f":"HYPERLINK(CONCATENATE(\"http://www.fundamentus.com.br/detalhes.php?papel=\",Tabela1[[#This Row],[Nome de Pregão]]),\"Clique aqui\")","v":"Clique aqui"}]
["CIA SANEAMENTO BASICO EST SAO PAULO","SABESP","NM",{"$f":"HYPERLINK(CONCATENATE(\"http://www.fundamentus.com.br/detalhes.php?papel=\",Tabela1[[#This Row],[Nome de Pregão]]),\"Clique aqui\")","v":"Clique aqui"}]
["CIA SANEAMENTO DE MINAS GERAIS-COPASA MG","COPASA","NM",{"$f":"HYPERLINK(CONCATENATE(\"http://www.fundamentus.com.br/detalhes.php?papel=\",Tabela1[[#This Row],[Nome de Pregão]]),\"Clique aqui\")","v":"Clique aqui"}]
["CIA SANEAMENTO DO PARANA - SANEPAR","SANEPAR","N2",{"$f":"HYPERLINK(CONCATENATE(\"http://www.fundamentus.com.br/detalhes.php?papel=\",Tabela1[[#This Row],[Nome de Pregão]]),\"Clique aqui\")","v":"Clique aqui"}]
["CIA SEGUROS ALIANCA DA BAHIA","SEG AL BAHIA",null,{"$f":"HYPERLINK(CONCATENATE(\"http://www.fundamentus.com.br/detalhes.php?papel=\",Tabela1[[#This Row],[Nome de Pregão]]),\"Clique aqui\")","v":"Clique aqui"}]
["CIA SIDERURGICA NACIONAL","SID NACIONAL",null,{"$f":"HYPERLINK(CONCATENATE(\"http://www.fundamentus.com.br/detalhes.php?papel=\",Tabela1[[#This Row],[Nome de Pregão]]),\"Clique aqui\")","v":"Clique aqui"}]
["CIA TECIDOS NORTE DE MINAS COTEMINAS","COTEMINAS",null,{"$f":"HYPERLINK(CONCATENATE(\"http://www.fundamentus.com.br/detalhes.php?papel=\",Tabela1[[#This Row],[Nome de Pregão]]),\"Clique aqui\")","v":"Clique aqui"}]
["CIA TECIDOS SANTANENSE","SANTANENSE",null,{"$f":"HYPERLINK(CONCATENATE(\"http://www.fundamentus.com.br/detalhes.php?papel=\",Tabela1[[#This Row],[Nome de Pregão]]),\"Clique aqui\")","v":"Clique aqui"}]
["CIBRASEC - COMPANHIA BRASILEIRA DE SECURITIZACAO","CIBRASEC",null,{"$f":"HYPERLINK(CONCATENATE(\"http://www.fundamentus.com.br/detalhes.php?papel=\",Tabela1[[#This Row],[Nome de Pregão]]),\"Clique aqui\")","v":"Clique aqui"}]
["CIELO S.A.","CIELO","NM",{"$f":"HYPERLINK(CONCATENATE(\"http://www.fundamentus.com.br/detalhes.php?papel=\",Tabela1[[#This Row],[Nome de Pregão]]),\"Clique aqui\")","v":"Clique aqui"}]
["CIMS S.A.","CIMS",null,{"$f":"HYPERLINK(CONCATENATE(\"http://www.fundamentus.com.br/detalhes.php?papel=\",Tabela1[[#This Row],[Nome de Pregão]]),\"Clique aqui\")","v":"Clique aqui"}]
["CINESYSTEM S.A.","CINESYSTEM","MA",{"$f":"HYPERLINK(CONCATENATE(\"http://www.fundamentus.com.br/detalhes.php?papel=\",Tabela1[[#This Row],[Nome de Pregão]]),\"Clique aqui\")","v":"Clique aqui"}]
["CONC AUTO RAPOSO TAVARES S.A.","CONC RAPOSO",null,{"$f":"HYPERLINK(CONCATENATE(\"http://www.fundamentus.com.br/detalhes.php?papel=\",Tabela1[[#This Row],[Nome de Pregão]]),\"Clique aqui\")","v":"Clique aqui"}]
["CONC DO AEROPORTO INTERNACIONAL DE GUARULHOS S.A.","GRUAIRPORT","MB",{"$f":"HYPERLINK(CONCATENATE(\"http://www.fundamentus.com.br/detalhes.php?papel=\",Tabela1[[#This Row],[Nome de Pregão]]),\"Clique aqui\")","v":"Clique aqui"}]
["CONC ECOVIAS IMIGRANTES S.A.","ECOVIAS",null,{"$f":"HYPERLINK(CONCATENATE(\"http://www.fundamentus.com.br/detalhes.php?papel=\",Tabela1[[#This Row],[Nome de Pregão]]),\"Clique aqui\")","v":"Clique aqui"}]
["CONC RIO-TERESOPOLIS S.A.","CONC RIO TER","MB",{"$f":"HYPERLINK(CONCATENATE(\"http://www.fundamentus.com.br/detalhes.php?papel=\",Tabela1[[#This Row],[Nome de Pregão]]),\"Clique aqui\")","v":"Clique aqui"}]
["CONC ROD AYRTON SENNA E CARV PINTO S.A.-ECOPISTAS","ECOPISTAS",null,{"$f":"HYPERLINK(CONCATENATE(\"http://www.fundamentus.com.br/detalhes.php?papel=\",Tabela1[[#This Row],[Nome de Pregão]]),\"Clique aqui\")","v":"Clique aqui"}]
["CONC ROD.OESTE SP VIAOESTE S.A","VIAOESTE",null,{"$f":"HYPERLINK(CONCATENATE(\"http://www.fundamentus.com.br/detalhes.php?papel=\",Tabela1[[#This Row],[Nome de Pregão]]),\"Clique aqui\")","v":"Clique aqui"}]
["CONC RODOVIAS DO TIETÊ S.A.","ROD TIETE",null,{"$f":"HYPERLINK(CONCATENATE(\"http://www.fundamentus.com.br/detalhes.php?papel=\",Tabela1[[#This Row],[Nome de Pregão]]),\"Clique aqui\")","v":"Clique aqui"}]
["CONC ROTA DAS BANDEIRAS S.A.","RT BANDEIRAS",null,{"$f":"HYPERLINK(CONCATENATE(\"http://www.fundamentus.com.br/detalhes.php?papel=\",Tabela1[[#This Row],[Nome de Pregão]]),\"Clique aqui\")","v":"Clique aqui"}]
["CONC SIST ANHANG-BANDEIRANT S.A. AUTOBAN","AUTOBAN",null,{"$f":"HYPERLINK(CONCATENATE(\"http://www.fundamentus.com.br/detalhes.php?papel=\",Tabela1[[#This Row],[Nome de Pregão]]),\"Clique aqui\")","v":"Clique aqui"}]
["CONSERVAS ODERICH S.A.","ODERICH",null,{"$f":"HYPERLINK(CONCATENATE(\"http://www.fundamentus.com.br/detalhes.php?papel=\",Tabela1[[#This Row],[Nome de Pregão]]),\"Clique aqui\")","v":"Clique aqui"}]
["CONSORCIO ALFA DE ADMINISTRACAO S.A.","ALFA CONSORC",null,{"$f":"HYPERLINK(CONCATENATE(\"http://www.fundamentus.com.br/detalhes.php?papel=\",Tabela1[[#This Row],[Nome de Pregão]]),\"Clique aqui\")","v":"Clique aqui"}]
["CONSTRUTORA ADOLPHO LINDENBERG S.A.","CONST A LIND",null,{"$f":"HYPERLINK(CONCATENATE(\"http://www.fundamentus.com.br/detalhes.php?papel=\",Tabela1[[#This Row],[Nome de Pregão]]),\"Clique aqui\")","v":"Clique aqui"}]
["CONSTRUTORA TENDA S.A.","TENDA","NM",{"$f":"HYPERLINK(CONCATENATE(\"http://www.fundamentus.com.br/detalhes.php?papel=\",Tabela1[[#This Row],[Nome de Pregão]]),\"Clique aqui\")","v":"Clique aqui"}]
["CORREA RIBEIRO S.A. COMERCIO E INDUSTRIA","COR RIBEIRO",null,{"$f":"HYPERLINK(CONCATENATE(\"http://www.fundamentus.com.br/detalhes.php?papel=\",Tabela1[[#This Row],[Nome de Pregão]]),\"Clique aqui\")","v":"Clique aqui"}]
["COSAN LOGISTICA S.A.","COSAN LOG","NM",{"$f":"HYPERLINK(CONCATENATE(\"http://www.fundamentus.com.br/detalhes.php?papel=\",Tabela1[[#This Row],[Nome de Pregão]]),\"Clique aqui\")","v":"Clique aqui"}]
["COSAN S.A.","COSAN","NM",{"$f":"HYPERLINK(CONCATENATE(\"http://www.fundamentus.com.br/detalhes.php?papel=\",Tabela1[[#This Row],[Nome de Pregão]]),\"Clique aqui\")","v":"Clique aqui"}]
["CPFL ENERGIA S.A.","CPFL ENERGIA","NM",{"$f":"HYPERLINK(CONCATENATE(\"http://www.fundamentus.com.br/detalhes.php?papel=\",Tabela1[[#This Row],[Nome de Pregão]]),\"Clique aqui\")","v":"Clique aqui"}]
["CPFL ENERGIAS RENOVÁVEIS S.A.","CPFL RENOVAV","NM",{"$f":"HYPERLINK(CONCATENATE(\"http://www.fundamentus.com.br/detalhes.php?papel=\",Tabela1[[#This Row],[Nome de Pregão]]),\"Clique aqui\")","v":"Clique aqui"}]
["CPFL GERACAO DE ENERGIA S.A.","CPFL GERACAO",null,{"$f":"HYPERLINK(CONCATENATE(\"http://www.fundamentus.com.br/detalhes.php?papel=\",Tabela1[[#This Row],[Nome de Pregão]]),\"Clique aqui\")","v":"Clique aqui"}]
["CR2 EMPREENDIMENTOS IMOBILIARIOS S.A.","CR2","NM",{"$f":"HYPERLINK(CONCATENATE(\"http://www.fundamentus.com.br/detalhes.php?papel=\",Tabela1[[#This Row],[Nome de Pregão]]),\"Clique aqui\")","v":"Clique aqui"}]
["CRISTAL PIGMENTOS DO BRASIL S.A.","CRISTAL",null,{"$f":"HYPERLINK(CONCATENATE(\"http://www.fundamentus.com.br/detalhes.php?papel=\",Tabela1[[#This Row],[Nome de Pregão]]),\"Clique aqui\")","v":"Clique aqui"}]
["CSU CARDSYSTEM S.A.","CSU CARDSYST","NM",{"$f":"HYPERLINK(CONCATENATE(\"http://www.fundamentus.com.br/detalhes.php?papel=\",Tabela1[[#This Row],[Nome de Pregão]]),\"Clique aqui\")","v":"Clique aqui"}]
["CTC - CENTRO DE TECNOLOGIA CANAVIEIRA S.A.","CTC S.A.","MA",{"$f":"HYPERLINK(CONCATENATE(\"http://www.fundamentus.com.br/detalhes.php?papel=\",Tabela1[[#This Row],[Nome de Pregão]]),\"Clique aqui\")","v":"Clique aqui"}]
["CTEEP - CIA TRANSMISSÃO ENERGIA ELÉTRICA PAULISTA","TRAN PAULIST","N1",{"$f":"HYPERLINK(CONCATENATE(\"http://www.fundamentus.com.br/detalhes.php?papel=\",Tabela1[[#This Row],[Nome de Pregão]]),\"Clique aqui\")","v":"Clique aqui"}]
["CVC BRASIL OPERADORA E AGÊNCIA DE VIAGENS S.A.","CVC BRASIL","NM",{"$f":"HYPERLINK(CONCATENATE(\"http://www.fundamentus.com.br/detalhes.php?papel=\",Tabela1[[#This Row],[Nome de Pregão]]),\"Clique aqui\")","v":"Clique aqui"}]
["CYRELA BRAZIL REALTY S.A.EMPREEND E PART","CYRELA REALT","NM",{"$f":"HYPERLINK(CONCATENATE(\"http://www.fundamentus.com.br/detalhes.php?papel=\",Tabela1[[#This Row],[Nome de Pregão]]),\"Clique aqui\")","v":"Clique aqui"}]
["CYRELA COMMERCIAL PROPERT S.A. EMPR PART","CYRE COM-CCP","NM",{"$f":"HYPERLINK(CONCATENATE(\"http://www.fundamentus.com.br/detalhes.php?papel=\",Tabela1[[#This Row],[Nome de Pregão]]),\"Clique aqui\")","v":"Clique aqui"}]
["DIAGNOSTICOS DA AMERICA S.A.","DASA",null,{"$f":"HYPERLINK(CONCATENATE(\"http://www.fundamentus.com.br/detalhes.php?papel=\",Tabela1[[#This Row],[Nome de Pregão]]),\"Clique aqui\")","v":"Clique aqui"}]
["DIBENS LEASING S.A. - ARREND.MERCANTIL","DIBENS LSG",null,{"$f":"HYPERLINK(CONCATENATE(\"http://www.fundamentus.com.br/detalhes.php?papel=\",Tabela1[[#This Row],[Nome de Pregão]]),\"Clique aqui\")","v":"Clique aqui"}]
["DIMED S.A. DISTRIBUIDORA DE MEDICAMENTOS","DIMED",null,{"$f":"HYPERLINK(CONCATENATE(\"http://www.fundamentus.com.br/detalhes.php?papel=\",Tabela1[[#This Row],[Nome de Pregão]]),\"Clique aqui\")","v":"Clique aqui"}]
["DIRECIONAL ENGENHARIA S.A.","DIRECIONAL","NM",{"$f":"HYPERLINK(CONCATENATE(\"http://www.fundamentus.com.br/detalhes.php?papel=\",Tabela1[[#This Row],[Nome de Pregão]]),\"Clique aqui\")","v":"Clique aqui"}]
["DOHLER S.A.","DOHLER",null,{"$f":"HYPERLINK(CONCATENATE(\"http://www.fundamentus.com.br/detalhes.php?papel=\",Tabela1[[#This Row],[Nome de Pregão]]),\"Clique aqui\")","v":"Clique aqui"}]
["DOMMO ENERGIA S.A.","DOMMO",null,{"$f":"HYPERLINK(CONCATENATE(\"http://www.fundamentus.com.br/detalhes.php?papel=\",Tabela1[[#This Row],[Nome de Pregão]]),\"Clique aqui\")","v":"Clique aqui"}]
["DTCOM - DIRECT TO COMPANY S.A.","DTCOM-DIRECT",null,{"$f":"HYPERLINK(CONCATENATE(\"http://www.fundamentus.com.br/detalhes.php?papel=\",Tabela1[[#This Row],[Nome de Pregão]]),\"Clique aqui\")","v":"Clique aqui"}]
["DURATEX S.A.","DURATEX","NM",{"$f":"HYPERLINK(CONCATENATE(\"http://www.fundamentus.com.br/detalhes.php?papel=\",Tabela1[[#This Row],[Nome de Pregão]]),\"Clique aqui\")","v":"Clique aqui"}]
["ECO SECURITIZADORA DIREITOS CRED AGRONEGÓCIO S.A.","ECO SEC AGRO","MB",{"$f":"HYPERLINK(CONCATENATE(\"http://www.fundamentus.com.br/detalhes.php?papel=\",Tabela1[[#This Row],[Nome de Pregão]]),\"Clique aqui\")","v":"Clique aqui"}]
["ECORODOVIAS CONCESSÕES E SERVIÇOS S.A.","ECON",null,{"$f":"HYPERLINK(CONCATENATE(\"http://www.fundamentus.com.br/detalhes.php?papel=\",Tabela1[[#This Row],[Nome de Pregão]]),\"Clique aqui\")","v":"Clique aqui"}]
["ECORODOVIAS INFRAESTRUTURA E LOGÍSTICA S.A.","ECORODOVIAS","NM",{"$f":"HYPERLINK(CONCATENATE(\"http://www.fundamentus.com.br/detalhes.php?papel=\",Tabela1[[#This Row],[Nome de Pregão]]),\"Clique aqui\")","v":"Clique aqui"}]
["EDP - ENERGIAS DO BRASIL S.A.","ENERGIAS BR","NM",{"$f":"HYPERLINK(CONCATENATE(\"http://www.fundamentus.com.br/detalhes.php?papel=\",Tabela1[[#This Row],[Nome de Pregão]]),\"Clique aqui\")","v":"Clique aqui"}]
["EDP ESPIRITO SANTO DISTRIBUIÇÃO DE ENERGIA S.A.","ESCELSA",null,{"$f":"HYPERLINK(CONCATENATE(\"http://www.fundamentus.com.br/detalhes.php?papel=\",Tabela1[[#This Row],[Nome de Pregão]]),\"Clique aqui\")","v":"Clique aqui"}]
["EDP SÃO PAULO DISTRIBUIÇÃO DE ENERGIA S.A.","EBE",null,{"$f":"HYPERLINK(CONCATENATE(\"http://www.fundamentus.com.br/detalhes.php?papel=\",Tabela1[[#This Row],[Nome de Pregão]]),\"Clique aqui\")","v":"Clique aqui"}]
["ELECTRO ACO ALTONA S.A.","ACO ALTONA",null,{"$f":"HYPERLINK(CONCATENATE(\"http://www.fundamentus.com.br/detalhes.php?papel=\",Tabela1[[#This Row],[Nome de Pregão]]),\"Clique aqui\")","v":"Clique aqui"}]
["ELEKEIROZ S.A.","ELEKEIROZ",null,{"$f":"HYPERLINK(CONCATENATE(\"http://www.fundamentus.com.br/detalhes.php?papel=\",Tabela1[[#This Row],[Nome de Pregão]]),\"Clique aqui\")","v":"Clique aqui"}]
["ELEKTRO REDES S.A.","ELEKTRO",null,{"$f":"HYPERLINK(CONCATENATE(\"http://www.fundamentus.com.br/detalhes.php?papel=\",Tabela1[[#This Row],[Nome de Pregão]]),\"Clique aqui\")","v":"Clique aqui"}]
["ELETROBRÁS PARTICIPAÇÕES S.A. - ELETROPAR","ELETROPAR",null,{"$f":"HYPERLINK(CONCATENATE(\"http://www.fundamentus.com.br/detalhes.php?papel=\",Tabela1[[#This Row],[Nome de Pregão]]),\"Clique aqui\")","v":"Clique aqui"}]
["ELETRON S.A.","ELETRON","MB",{"$f":"HYPERLINK(CONCATENATE(\"http://www.fundamentus.com.br/detalhes.php?papel=\",Tabela1[[#This Row],[Nome de Pregão]]),\"Clique aqui\")","v":"Clique aqui"}]
["ELETROPAULO METROP. ELET. SAO PAULO S.A.","ELETROPAULO","NM",{"$f":"HYPERLINK(CONCATENATE(\"http://www.fundamentus.com.br/detalhes.php?papel=\",Tabela1[[#This Row],[Nome de Pregão]]),\"Clique aqui\")","v":"Clique aqui"}]
["EMAE - EMPRESA METROP.AGUAS ENERGIA S.A.","EMAE",null,{"$f":"HYPERLINK(CONCATENATE(\"http://www.fundamentus.com.br/detalhes.php?papel=\",Tabela1[[#This Row],[Nome de Pregão]]),\"Clique aqui\")","v":"Clique aqui"}]
["EMBRAER S.A.","EMBRAER","NM",{"$f":"HYPERLINK(CONCATENATE(\"http://www.fundamentus.com.br/detalhes.php?papel=\",Tabela1[[#This Row],[Nome de Pregão]]),\"Clique aqui\")","v":"Clique aqui"}]
["EMPRESA CONC RODOV DO NORTE S.A.ECONORTE","ECONORTE",null,{"$f":"HYPERLINK(CONCATENATE(\"http://www.fundamentus.com.br/detalhes.php?papel=\",Tabela1[[#This Row],[Nome de Pregão]]),\"Clique aqui\")","v":"Clique aqui"}]
["EMPRESA NAC COM REDITO PART S.A.ENCORPAR","ENCORPAR",null,{"$f":"HYPERLINK(CONCATENATE(\"http://www.fundamentus.com.br/detalhes.php?papel=\",Tabela1[[#This Row],[Nome de Pregão]]),\"Clique aqui\")","v":"Clique aqui"}]
["ENERGISA MATO GROSSO DO SUL - DIST DE ENERGIA S.A.","ENERSUL",null,{"$f":"HYPERLINK(CONCATENATE(\"http://www.fundamentus.com.br/detalhes.php?papel=\",Tabela1[[#This Row],[Nome de Pregão]]),\"Clique aqui\")","v":"Clique aqui"}]
["ENERGISA MATO GROSSO-DISTRIBUIDORA DE ENERGIA S/A","ENERGISA MT",null,{"$f":"HYPERLINK(CONCATENATE(\"http://www.fundamentus.com.br/detalhes.php?papel=\",Tabela1[[#This Row],[Nome de Pregão]]),\"Clique aqui\")","v":"Clique aqui"}]
["ENERGISA S.A.","ENERGISA","N2",{"$f":"HYPERLINK(CONCATENATE(\"http://www.fundamentus.com.br/detalhes.php?papel=\",Tabela1[[#This Row],[Nome de Pregão]]),\"Clique aqui\")","v":"Clique aqui"}]
["ENEVA S.A","ENEVA","NM",{"$f":"HYPERLINK(CONCATENATE(\"http://www.fundamentus.com.br/detalhes.php?papel=\",Tabela1[[#This Row],[Nome de Pregão]]),\"Clique aqui\")","v":"Clique aqui"}]
["ENGIE BRASIL ENERGIA S.A.","ENGIE BRASIL","NM",{"$f":"HYPERLINK(CONCATENATE(\"http://www.fundamentus.com.br/detalhes.php?papel=\",Tabela1[[#This Row],[Nome de Pregão]]),\"Clique aqui\")","v":"Clique aqui"}]
["EQUATORIAL ENERGIA S.A.","EQUATORIAL","NM",{"$f":"HYPERLINK(CONCATENATE(\"http://www.fundamentus.com.br/detalhes.php?papel=\",Tabela1[[#This Row],[Nome de Pregão]]),\"Clique aqui\")","v":"Clique aqui"}]
["ESTACIO PARTICIPACOES S.A.","ESTACIO PART","NM",{"$f":"HYPERLINK(CONCATENATE(\"http://www.fundamentus.com.br/detalhes.php?papel=\",Tabela1[[#This Row],[Nome de Pregão]]),\"Clique aqui\")","v":"Clique aqui"}]
["ETERNIT S.A.","ETERNIT","NM",{"$f":"HYPERLINK(CONCATENATE(\"http://www.fundamentus.com.br/detalhes.php?papel=\",Tabela1[[#This Row],[Nome de Pregão]]),\"Clique aqui\")","v":"Clique aqui"}]
["EUCATEX S.A. INDUSTRIA E COMERCIO","EUCATEX","N1",{"$f":"HYPERLINK(CONCATENATE(\"http://www.fundamentus.com.br/detalhes.php?papel=\",Tabela1[[#This Row],[Nome de Pregão]]),\"Clique aqui\")","v":"Clique aqui"}]
["EVEN CONSTRUTORA E INCORPORADORA S.A.","EVEN","NM",{"$f":"HYPERLINK(CONCATENATE(\"http://www.fundamentus.com.br/detalhes.php?papel=\",Tabela1[[#This Row],[Nome de Pregão]]),\"Clique aqui\")","v":"Clique aqui"}]
["EXCELSIOR ALIMENTOS S.A.","EXCELSIOR",null,{"$f":"HYPERLINK(CONCATENATE(\"http://www.fundamentus.com.br/detalhes.php?papel=\",Tabela1[[#This Row],[Nome de Pregão]]),\"Clique aqui\")","v":"Clique aqui"}]
["EZ TEC EMPREEND. E PARTICIPACOES S.A.","EZTEC","NM",{"$f":"HYPERLINK(CONCATENATE(\"http://www.fundamentus.com.br/detalhes.php?papel=\",Tabela1[[#This Row],[Nome de Pregão]]),\"Clique aqui\")","v":"Clique aqui"}]
["FERREIRA GOMES ENERGIA S.A.","FGENERGIA",null,{"$f":"HYPERLINK(CONCATENATE(\"http://www.fundamentus.com.br/detalhes.php?papel=\",Tabela1[[#This Row],[Nome de Pregão]]),\"Clique aqui\")","v":"Clique aqui"}]
["FERROVIA CENTRO-ATLANTICA S.A.","FER C ATLANT",null,{"$f":"HYPERLINK(CONCATENATE(\"http://www.fundamentus.com.br/detalhes.php?papel=\",Tabela1[[#This Row],[Nome de Pregão]]),\"Clique aqui\")","v":"Clique aqui"}]
["FERTILIZANTES HERINGER S.A.","FER HERINGER","NM",{"$f":"HYPERLINK(CONCATENATE(\"http://www.fundamentus.com.br/detalhes.php?papel=\",Tabela1[[#This Row],[Nome de Pregão]]),\"Clique aqui\")","v":"Clique aqui"}]
["FIBAM COMPANHIA INDUSTRIAL","FIBAM",null,{"$f":"HYPERLINK(CONCATENATE(\"http://www.fundamentus.com.br/detalhes.php?papel=\",Tabela1[[#This Row],[Nome de Pregão]]),\"Clique aqui\")","v":"Clique aqui"}]
["FIBRIA CELULOSE S.A.","FIBRIA","NM",{"$f":"HYPERLINK(CONCATENATE(\"http://www.fundamentus.com.br/detalhes.php?papel=\",Tabela1[[#This Row],[Nome de Pregão]]),\"Clique aqui\")","v":"Clique aqui"}]
["FINANCEIRA ALFA S.A.- CRED FINANC E INVS","ALFA FINANC",null,{"$f":"HYPERLINK(CONCATENATE(\"http://www.fundamentus.com.br/detalhes.php?papel=\",Tabela1[[#This Row],[Nome de Pregão]]),\"Clique aqui\")","v":"Clique aqui"}]
["FINANSINOS S.A.- CREDITO FINANC E INVEST","FINANSINOS",null,{"$f":"HYPERLINK(CONCATENATE(\"http://www.fundamentus.com.br/detalhes.php?papel=\",Tabela1[[#This Row],[Nome de Pregão]]),\"Clique aqui\")","v":"Clique aqui"}]
["FLEURY S.A.","FLEURY","NM",{"$f":"HYPERLINK(CONCATENATE(\"http://www.fundamentus.com.br/detalhes.php?papel=\",Tabela1[[#This Row],[Nome de Pregão]]),\"Clique aqui\")","v":"Clique aqui"}]
["FLEX GESTÃO DE RELACIONAMENTOS S.A.","FLEX S/A","MA",{"$f":"HYPERLINK(CONCATENATE(\"http://www.fundamentus.com.br/detalhes.php?papel=\",Tabela1[[#This Row],[Nome de Pregão]]),\"Clique aqui\")","v":"Clique aqui"}]
["FRAS-LE S.A.","FRAS-LE","N1",{"$f":"HYPERLINK(CONCATENATE(\"http://www.fundamentus.com.br/detalhes.php?papel=\",Tabela1[[#This Row],[Nome de Pregão]]),\"Clique aqui\")","v":"Clique aqui"}]
["FUTURETEL S.A.","FUTURETEL","MB",{"$f":"HYPERLINK(CONCATENATE(\"http://www.fundamentus.com.br/detalhes.php?papel=\",Tabela1[[#This Row],[Nome de Pregão]]),\"Clique aqui\")","v":"Clique aqui"}]
["GAFISA S.A.","GAFISA","NM",{"$f":"HYPERLINK(CONCATENATE(\"http://www.fundamentus.com.br/detalhes.php?papel=\",Tabela1[[#This Row],[Nome de Pregão]]),\"Clique aqui\")","v":"Clique aqui"}]
["GAIA AGRO SECURITIZADORA S.A.","GAIA AGRO",null,{"$f":"HYPERLINK(CONCATENATE(\"http://www.fundamentus.com.br/detalhes.php?papel=\",Tabela1[[#This Row],[Nome de Pregão]]),\"Clique aqui\")","v":"Clique aqui"}]
["GAIA SECURITIZADORA S.A.","GAIA SECURIT","MB",{"$f":"HYPERLINK(CONCATENATE(\"http://www.fundamentus.com.br/detalhes.php?papel=\",Tabela1[[#This Row],[Nome de Pregão]]),\"Clique aqui\")","v":"Clique aqui"}]
["GAMA PARTICIPACOES S.A.","GAMA PART","MB",{"$f":"HYPERLINK(CONCATENATE(\"http://www.fundamentus.com.br/detalhes.php?papel=\",Tabela1[[#This Row],[Nome de Pregão]]),\"Clique aqui\")","v":"Clique aqui"}]
["GENERAL SHOPPING E OUTLETS DO BRASIL S.A.","GENERALSHOPP","NM",{"$f":"HYPERLINK(CONCATENATE(\"http://www.fundamentus.com.br/detalhes.php?papel=\",Tabela1[[#This Row],[Nome de Pregão]]),\"Clique aqui\")","v":"Clique aqui"}]
["GERDAU S.A.","GERDAU","N1",{"$f":"HYPERLINK(CONCATENATE(\"http://www.fundamentus.com.br/detalhes.php?papel=\",Tabela1[[#This Row],[Nome de Pregão]]),\"Clique aqui\")","v":"Clique aqui"}]
["GOL LINHAS AEREAS INTELIGENTES S.A.","GOL","N2",{"$f":"HYPERLINK(CONCATENATE(\"http://www.fundamentus.com.br/detalhes.php?papel=\",Tabela1[[#This Row],[Nome de Pregão]]),\"Clique aqui\")","v":"Clique aqui"}]
["GP INVESTMENTS, LTD.","GP INVEST","DR3",{"$f":"HYPERLINK(CONCATENATE(\"http://www.fundamentus.com.br/detalhes.php?papel=\",Tabela1[[#This Row],[Nome de Pregão]]),\"Clique aqui\")","v":"Clique aqui"}]
["GPC PARTICIPACOES S.A.","GPC PART",null,{"$f":"HYPERLINK(CONCATENATE(\"http://www.fundamentus.com.br/detalhes.php?papel=\",Tabela1[[#This Row],[Nome de Pregão]]),\"Clique aqui\")","v":"Clique aqui"}]
["GRAZZIOTIN S.A.","GRAZZIOTIN",null,{"$f":"HYPERLINK(CONCATENATE(\"http://www.fundamentus.com.br/detalhes.php?papel=\",Tabela1[[#This Row],[Nome de Pregão]]),\"Clique aqui\")","v":"Clique aqui"}]
["GRENDENE S.A.","GRENDENE","NM",{"$f":"HYPERLINK(CONCATENATE(\"http://www.fundamentus.com.br/detalhes.php?papel=\",Tabela1[[#This Row],[Nome de Pregão]]),\"Clique aqui\")","v":"Clique aqui"}]
["GUARARAPES CONFECCOES S.A.","GUARARAPES",null,{"$f":"HYPERLINK(CONCATENATE(\"http://www.fundamentus.com.br/detalhes.php?papel=\",Tabela1[[#This Row],[Nome de Pregão]]),\"Clique aqui\")","v":"Clique aqui"}]
["HAGA S.A. INDUSTRIA E COMERCIO","HAGA S/A",null,{"$f":"HYPERLINK(CONCATENATE(\"http://www.fundamentus.com.br/detalhes.php?papel=\",Tabela1[[#This Row],[Nome de Pregão]]),\"Clique aqui\")","v":"Clique aqui"}]
["HAPVIDA PARTICIPACOES E INVESTIMENTOS SA","HAPVIDA","NM",{"$f":"HYPERLINK(CONCATENATE(\"http://www.fundamentus.com.br/detalhes.php?papel=\",Tabela1[[#This Row],[Nome de Pregão]]),\"Clique aqui\")","v":"Clique aqui"}]
["HELBOR EMPREENDIMENTOS S.A.","HELBOR","NM",{"$f":"HYPERLINK(CONCATENATE(\"http://www.fundamentus.com.br/detalhes.php?papel=\",Tabela1[[#This Row],[Nome de Pregão]]),\"Clique aqui\")","v":"Clique aqui"}]
["HERCULES S.A. FABRICA DE TALHERES","HERCULES",null,{"$f":"HYPERLINK(CONCATENATE(\"http://www.fundamentus.com.br/detalhes.php?papel=\",Tabela1[[#This Row],[Nome de Pregão]]),\"Clique aqui\")","v":"Clique aqui"}]
["HOTEIS OTHON S.A.","HOTEIS OTHON",null,{"$f":"HYPERLINK(CONCATENATE(\"http://www.fundamentus.com.br/detalhes.php?papel=\",Tabela1[[#This Row],[Nome de Pregão]]),\"Clique aqui\")","v":"Clique aqui"}]
["HYPERA S.A.","HYPERA","NM",{"$f":"HYPERLINK(CONCATENATE(\"http://www.fundamentus.com.br/detalhes.php?papel=\",Tabela1[[#This Row],[Nome de Pregão]]),\"Clique aqui\")","v":"Clique aqui"}]
["IDEIASNET S.A.","IDEIASNET",null,{"$f":"HYPERLINK(CONCATENATE(\"http://www.fundamentus.com.br/detalhes.php?papel=\",Tabela1[[#This Row],[Nome de Pregão]]),\"Clique aqui\")","v":"Clique aqui"}]
["IGB ELETRÔNICA S/A","IGB S/A",null,{"$f":"HYPERLINK(CONCATENATE(\"http://www.fundamentus.com.br/detalhes.php?papel=\",Tabela1[[#This Row],[Nome de Pregão]]),\"Clique aqui\")","v":"Clique aqui"}]
["IGUA SANEAMENTO S.A.","IGUA SA","MA",{"$f":"HYPERLINK(CONCATENATE(\"http://www.fundamentus.com.br/detalhes.php?papel=\",Tabela1[[#This Row],[Nome de Pregão]]),\"Clique aqui\")","v":"Clique aqui"}]
["IGUATEMI EMPRESA DE SHOPPING CENTERS S.A","IGUATEMI","NM",{"$f":"HYPERLINK(CONCATENATE(\"http://www.fundamentus.com.br/detalhes.php?papel=\",Tabela1[[#This Row],[Nome de Pregão]]),\"Clique aqui\")","v":"Clique aqui"}]
["INDUSTRIAS J B DUARTE S.A.","J B DUARTE",null,{"$f":"HYPERLINK(CONCATENATE(\"http://www.fundamentus.com.br/detalhes.php?papel=\",Tabela1[[#This Row],[Nome de Pregão]]),\"Clique aqui\")","v":"Clique aqui"}]
["INDUSTRIAS ROMI S.A.","INDS ROMI","NM",{"$f":"HYPERLINK(CONCATENATE(\"http://www.fundamentus.com.br/detalhes.php?papel=\",Tabela1[[#This Row],[Nome de Pregão]]),\"Clique aqui\")","v":"Clique aqui"}]
["INEPAR S.A. INDUSTRIA E CONSTRUCOES","INEPAR",null,{"$f":"HYPERLINK(CONCATENATE(\"http://www.fundamentus.com.br/detalhes.php?papel=\",Tabela1[[#This Row],[Nome de Pregão]]),\"Clique aqui\")","v":"Clique aqui"}]
["INNCORP S.A.","SELECTPART","MB",{"$f":"HYPERLINK(CONCATENATE(\"http://www.fundamentus.com.br/detalhes.php?papel=\",Tabela1[[#This Row],[Nome de Pregão]]),\"Clique aqui\")","v":"Clique aqui"}]
["INSTITUTO HERMES PARDINI S.A.","IHPARDINI","NM",{"$f":"HYPERLINK(CONCATENATE(\"http://www.fundamentus.com.br/detalhes.php?papel=\",Tabela1[[#This Row],[Nome de Pregão]]),\"Clique aqui\")","v":"Clique aqui"}]
["INTER CONSTRUTORA E INCORPORADORA S.A.","INTER SA","MA",{"$f":"HYPERLINK(CONCATENATE(\"http://www.fundamentus.com.br/detalhes.php?papel=\",Tabela1[[#This Row],[Nome de Pregão]]),\"Clique aqui\")","v":"Clique aqui"}]
["INTERNATIONAL MEAL COMPANY ALIMENTACAO S.A.","IMC S/A","NM",{"$f":"HYPERLINK(CONCATENATE(\"http://www.fundamentus.com.br/detalhes.php?papel=\",Tabela1[[#This Row],[Nome de Pregão]]),\"Clique aqui\")","v":"Clique aqui"}]
["INVESTIMENTOS BEMGE S.A.","INVEST BEMGE",null,{"$f":"HYPERLINK(CONCATENATE(\"http://www.fundamentus.com.br/detalhes.php?papel=\",Tabela1[[#This Row],[Nome de Pregão]]),\"Clique aqui\")","v":"Clique aqui"}]
["INVESTIMENTOS E PARTICIP. EM INFRA S.A. - INVEPAR","INVEPAR","MB",{"$f":"HYPERLINK(CONCATENATE(\"http://www.fundamentus.com.br/detalhes.php?papel=\",Tabela1[[#This Row],[Nome de Pregão]]),\"Clique aqui\")","v":"Clique aqui"}]
["IOCHPE MAXION S.A.","IOCHP-MAXION","NM",{"$f":"HYPERLINK(CONCATENATE(\"http://www.fundamentus.com.br/detalhes.php?papel=\",Tabela1[[#This Row],[Nome de Pregão]]),\"Clique aqui\")","v":"Clique aqui"}]
["IRB - BRASIL RESSEGUROS S.A.","IRBBRASIL RE","NM",{"$f":"HYPERLINK(CONCATENATE(\"http://www.fundamentus.com.br/detalhes.php?papel=\",Tabela1[[#This Row],[Nome de Pregão]]),\"Clique aqui\")","v":"Clique aqui"}]
["ITAPEBI GERACAO DE ENERGIA S.A.","ITAPEBI",null,{"$f":"HYPERLINK(CONCATENATE(\"http://www.fundamentus.com.br/detalhes.php?papel=\",Tabela1[[#This Row],[Nome de Pregão]]),\"Clique aqui\")","v":"Clique aqui"}]
["ITAU UNIBANCO HOLDING S.A.","ITAUUNIBANCO","N1",{"$f":"HYPERLINK(CONCATENATE(\"http://www.fundamentus.com.br/detalhes.php?papel=\",Tabela1[[#This Row],[Nome de Pregão]]),\"Clique aqui\")","v":"Clique aqui"}]
["ITAUSA INVESTIMENTOS ITAU S.A.","ITAUSA","N1",{"$f":"HYPERLINK(CONCATENATE(\"http://www.fundamentus.com.br/detalhes.php?papel=\",Tabela1[[#This Row],[Nome de Pregão]]),\"Clique aqui\")","v":"Clique aqui"}]
["ITAUTEC S.A. - GRUPO ITAUTEC","ITAUTEC",null,{"$f":"HYPERLINK(CONCATENATE(\"http://www.fundamentus.com.br/detalhes.php?papel=\",Tabela1[[#This Row],[Nome de Pregão]]),\"Clique aqui\")","v":"Clique aqui"}]
["J. MACEDO S.A.","J.MACEDO",null,{"$f":"HYPERLINK(CONCATENATE(\"http://www.fundamentus.com.br/detalhes.php?papel=\",Tabela1[[#This Row],[Nome de Pregão]]),\"Clique aqui\")","v":"Clique aqui"}]
["JBS S.A.","JBS","NM",{"$f":"HYPERLINK(CONCATENATE(\"http://www.fundamentus.com.br/detalhes.php?papel=\",Tabela1[[#This Row],[Nome de Pregão]]),\"Clique aqui\")","v":"Clique aqui"}]
["JEREISSATI PARTICIPACOES S.A.","JEREISSATI",null,{"$f":"HYPERLINK(CONCATENATE(\"http://www.fundamentus.com.br/detalhes.php?papel=\",Tabela1[[#This Row],[Nome de Pregão]]),\"Clique aqui\")","v":"Clique aqui"}]
["JHSF PARTICIPACOES S.A.","JHSF PART","NM",{"$f":"HYPERLINK(CONCATENATE(\"http://www.fundamentus.com.br/detalhes.php?papel=\",Tabela1[[#This Row],[Nome de Pregão]]),\"Clique aqui\")","v":"Clique aqui"}]
["JOAO FORTES ENGENHARIA S.A.","JOAO FORTES",null,{"$f":"HYPERLINK(CONCATENATE(\"http://www.fundamentus.com.br/detalhes.php?papel=\",Tabela1[[#This Row],[Nome de Pregão]]),\"Clique aqui\")","v":"Clique aqui"}]
["JOSAPAR-JOAQUIM OLIVEIRA S.A. - PARTICIP","JOSAPAR",null,{"$f":"HYPERLINK(CONCATENATE(\"http://www.fundamentus.com.br/detalhes.php?papel=\",Tabela1[[#This Row],[Nome de Pregão]]),\"Clique aqui\")","v":"Clique aqui"}]
["JSL S.A.","JSL","NM",{"$f":"HYPERLINK(CONCATENATE(\"http://www.fundamentus.com.br/detalhes.php?papel=\",Tabela1[[#This Row],[Nome de Pregão]]),\"Clique aqui\")","v":"Clique aqui"}]
["KARSTEN S.A.","KARSTEN",null,{"$f":"HYPERLINK(CONCATENATE(\"http://www.fundamentus.com.br/detalhes.php?papel=\",Tabela1[[#This Row],[Nome de Pregão]]),\"Clique aqui\")","v":"Clique aqui"}]
["KEPLER WEBER S.A.","KEPLER WEBER",null,{"$f":"HYPERLINK(CONCATENATE(\"http://www.fundamentus.com.br/detalhes.php?papel=\",Tabela1[[#This Row],[Nome de Pregão]]),\"Clique aqui\")","v":"Clique aqui"}]
["KLABIN S.A.","KLABIN S/A","N2",{"$f":"HYPERLINK(CONCATENATE(\"http://www.fundamentus.com.br/detalhes.php?papel=\",Tabela1[[#This Row],[Nome de Pregão]]),\"Clique aqui\")","v":"Clique aqui"}]
["KROTON EDUCACIONAL S.A.","KROTON","NM",{"$f":"HYPERLINK(CONCATENATE(\"http://www.fundamentus.com.br/detalhes.php?papel=\",Tabela1[[#This Row],[Nome de Pregão]]),\"Clique aqui\")","v":"Clique aqui"},"SIM"]
["LIBRA TERMINAL RIO S.A.","LIBRA T RIO",null,{"$f":"HYPERLINK(CONCATENATE(\"http://www.fundamentus.com.br/detalhes.php?papel=\",Tabela1[[#This Row],[Nome de Pregão]]),\"Clique aqui\")","v":"Clique aqui"}]
["LIGHT S.A.","LIGHT S/A","NM",{"$f":"HYPERLINK(CONCATENATE(\"http://www.fundamentus.com.br/detalhes.php?papel=\",Tabela1[[#This Row],[Nome de Pregão]]),\"Clique aqui\")","v":"Clique aqui"}]
["LIGHT SERVICOS DE ELETRICIDADE S.A.","LIGHT",null,{"$f":"HYPERLINK(CONCATENATE(\"http://www.fundamentus.com.br/detalhes.php?papel=\",Tabela1[[#This Row],[Nome de Pregão]]),\"Clique aqui\")","v":"Clique aqui"}]
["LINX S.A.","LINX","NM",{"$f":"HYPERLINK(CONCATENATE(\"http://www.fundamentus.com.br/detalhes.php?papel=\",Tabela1[[#This Row],[Nome de Pregão]]),\"Clique aqui\")","v":"Clique aqui"}]
["LIQ PARTICIPAÇÕES S.A.","LIQ","NM",{"$f":"HYPERLINK(CONCATENATE(\"http://www.fundamentus.com.br/detalhes.php?papel=\",Tabela1[[#This Row],[Nome de Pregão]]),\"Clique aqui\")","v":"Clique aqui"}]
["LITEL PARTICIPACOES S.A.","LITEL","MB",{"$f":"HYPERLINK(CONCATENATE(\"http://www.fundamentus.com.br/detalhes.php?papel=\",Tabela1[[#This Row],[Nome de Pregão]]),\"Clique aqui\")","v":"Clique aqui"}]
["LOCALIZA RENT A CAR S.A.","LOCALIZA","NM",{"$f":"HYPERLINK(CONCATENATE(\"http://www.fundamentus.com.br/detalhes.php?papel=\",Tabela1[[#This Row],[Nome de Pregão]]),\"Clique aqui\")","v":"Clique aqui"}]
["LOG COMMERCIAL PROPERTIES","LOG COM PROP","NM",{"$f":"HYPERLINK(CONCATENATE(\"http://www.fundamentus.com.br/detalhes.php?papel=\",Tabela1[[#This Row],[Nome de Pregão]]),\"Clique aqui\")","v":"Clique aqui"}]
["LOG-IN LOGISTICA INTERMODAL S.A.","LOG-IN","NM",{"$f":"HYPERLINK(CONCATENATE(\"http://www.fundamentus.com.br/detalhes.php?papel=\",Tabela1[[#This Row],[Nome de Pregão]]),\"Clique aqui\")","v":"Clique aqui"}]
["LOJAS AMERICANAS S.A.","LOJAS AMERIC","N1",{"$f":"HYPERLINK(CONCATENATE(\"http://www.fundamentus.com.br/detalhes.php?papel=\",Tabela1[[#This Row],[Nome de Pregão]]),\"Clique aqui\")","v":"Clique aqui"}]
["LOJAS HERING S.A.","LOJAS HERING",null,{"$f":"HYPERLINK(CONCATENATE(\"http://www.fundamentus.com.br/detalhes.php?papel=\",Tabela1[[#This Row],[Nome de Pregão]]),\"Clique aqui\")","v":"Clique aqui"}]
["LOJAS RENNER S.A.","LOJAS RENNER","NM",{"$f":"HYPERLINK(CONCATENATE(\"http://www.fundamentus.com.br/detalhes.php?papel=\",Tabela1[[#This Row],[Nome de Pregão]]),\"Clique aqui\")","v":"Clique aqui"}]
["LONGDIS S.A.","LONGDIS","MB",{"$f":"HYPERLINK(CONCATENATE(\"http://www.fundamentus.com.br/detalhes.php?papel=\",Tabela1[[#This Row],[Nome de Pregão]]),\"Clique aqui\")","v":"Clique aqui"}]
["LPS BRASIL - CONSULTORIA DE IMOVEIS S.A.","LOPES BRASIL","NM",{"$f":"HYPERLINK(CONCATENATE(\"http://www.fundamentus.com.br/detalhes.php?papel=\",Tabela1[[#This Row],[Nome de Pregão]]),\"Clique aqui\")","v":"Clique aqui"}]
["LUPATECH S.A.","LUPATECH","NM",{"$f":"HYPERLINK(CONCATENATE(\"http://www.fundamentus.com.br/detalhes.php?papel=\",Tabela1[[#This Row],[Nome de Pregão]]),\"Clique aqui\")","v":"Clique aqui"}]
["M.DIAS BRANCO S.A. IND COM DE ALIMENTOS","M.DIASBRANCO","NM",{"$f":"HYPERLINK(CONCATENATE(\"http://www.fundamentus.com.br/detalhes.php?papel=\",Tabela1[[#This Row],[Nome de Pregão]]),\"Clique aqui\")","v":"Clique aqui"}]
["MAESTRO LOCADORA DE VEICULOS S.A.","MAESTROLOC","MA",{"$f":"HYPERLINK(CONCATENATE(\"http://www.fundamentus.com.br/detalhes.php?papel=\",Tabela1[[#This Row],[Nome de Pregão]]),\"Clique aqui\")","v":"Clique aqui"}]
["MAGAZINE LUIZA S.A.","MAGAZ LUIZA","NM",{"$f":"HYPERLINK(CONCATENATE(\"http://www.fundamentus.com.br/detalhes.php?papel=\",Tabela1[[#This Row],[Nome de Pregão]]),\"Clique aqui\")","v":"Clique aqui"}]
["MAGNESITA REFRATARIOS S.A.","MAGNESITA SA",null,{"$f":"HYPERLINK(CONCATENATE(\"http://www.fundamentus.com.br/detalhes.php?papel=\",Tabela1[[#This Row],[Nome de Pregão]]),\"Clique aqui\")","v":"Clique aqui"}]
["MAHLE-METAL LEVE S.A.","METAL LEVE","NM",{"$f":"HYPERLINK(CONCATENATE(\"http://www.fundamentus.com.br/detalhes.php?papel=\",Tabela1[[#This Row],[Nome de Pregão]]),\"Clique aqui\")","v":"Clique aqui"}]
["MANGELS INDUSTRIAL S.A.","MANGELS INDL",null,{"$f":"HYPERLINK(CONCATENATE(\"http://www.fundamentus.com.br/detalhes.php?papel=\",Tabela1[[#This Row],[Nome de Pregão]]),\"Clique aqui\")","v":"Clique aqui"}]
["MANUFATURA DE BRINQUEDOS ESTRELA S.A.","ESTRELA",null,{"$f":"HYPERLINK(CONCATENATE(\"http://www.fundamentus.com.br/detalhes.php?papel=\",Tabela1[[#This Row],[Nome de Pregão]]),\"Clique aqui\")","v":"Clique aqui"}]
["MARCOPOLO S.A.","MARCOPOLO","N2",{"$f":"HYPERLINK(CONCATENATE(\"http://www.fundamentus.com.br/detalhes.php?papel=\",Tabela1[[#This Row],[Nome de Pregão]]),\"Clique aqui\")","v":"Clique aqui"}]
["MARFRIG GLOBAL FOODS S.A.","MARFRIG","NM",{"$f":"HYPERLINK(CONCATENATE(\"http://www.fundamentus.com.br/detalhes.php?papel=\",Tabela1[[#This Row],[Nome de Pregão]]),\"Clique aqui\")","v":"Clique aqui"}]
["MARISA LOJAS S.A.","LOJAS MARISA","NM",{"$f":"HYPERLINK(CONCATENATE(\"http://www.fundamentus.com.br/detalhes.php?papel=\",Tabela1[[#This Row],[Nome de Pregão]]),\"Clique aqui\")","v":"Clique aqui"}]
["MENDES JUNIOR ENGENHARIA S.A.","MENDES JR",null,{"$f":"HYPERLINK(CONCATENATE(\"http://www.fundamentus.com.br/detalhes.php?papel=\",Tabela1[[#This Row],[Nome de Pregão]]),\"Clique aqui\")","v":"Clique aqui"}]
["MERCANTIL BRASIL FINANC S.A. C.F.I.","MERC FINANC",null,{"$f":"HYPERLINK(CONCATENATE(\"http://www.fundamentus.com.br/detalhes.php?papel=\",Tabela1[[#This Row],[Nome de Pregão]]),\"Clique aqui\")","v":"Clique aqui"}]
["METALFRIO SOLUTIONS S.A.","METALFRIO","NM",{"$f":"HYPERLINK(CONCATENATE(\"http://www.fundamentus.com.br/detalhes.php?papel=\",Tabela1[[#This Row],[Nome de Pregão]]),\"Clique aqui\")","v":"Clique aqui"}]
["METALGRAFICA IGUACU S.A.","METAL IGUACU",null,{"$f":"HYPERLINK(CONCATENATE(\"http://www.fundamentus.com.br/detalhes.php?papel=\",Tabela1[[#This Row],[Nome de Pregão]]),\"Clique aqui\")","v":"Clique aqui"}]
["METALURGICA GERDAU S.A.","GERDAU MET","N1",{"$f":"HYPERLINK(CONCATENATE(\"http://www.fundamentus.com.br/detalhes.php?papel=\",Tabela1[[#This Row],[Nome de Pregão]]),\"Clique aqui\")","v":"Clique aqui"}]
["METALURGICA RIOSULENSE S.A.","RIOSULENSE",null,{"$f":"HYPERLINK(CONCATENATE(\"http://www.fundamentus.com.br/detalhes.php?papel=\",Tabela1[[#This Row],[Nome de Pregão]]),\"Clique aqui\")","v":"Clique aqui"}]
["METISA METALURGICA TIMBOENSE S.A.","METISA",null,{"$f":"HYPERLINK(CONCATENATE(\"http://www.fundamentus.com.br/detalhes.php?papel=\",Tabela1[[#This Row],[Nome de Pregão]]),\"Clique aqui\")","v":"Clique aqui"}]
["MGI - MINAS GERAIS PARTICIPAÇÕES S.A.","MGI PARTICIP",null,{"$f":"HYPERLINK(CONCATENATE(\"http://www.fundamentus.com.br/detalhes.php?papel=\",Tabela1[[#This Row],[Nome de Pregão]]),\"Clique aqui\")","v":"Clique aqui"}]
["MILLS ESTRUTURAS E SERVIÇOS DE ENGENHARIA S.A.","MILLS","NM",{"$f":"HYPERLINK(CONCATENATE(\"http://www.fundamentus.com.br/detalhes.php?papel=\",Tabela1[[#This Row],[Nome de Pregão]]),\"Clique aqui\")","v":"Clique aqui"}]
["MINASMAQUINAS S.A.","MINASMAQUINA",null,{"$f":"HYPERLINK(CONCATENATE(\"http://www.fundamentus.com.br/detalhes.php?papel=\",Tabela1[[#This Row],[Nome de Pregão]]),\"Clique aqui\")","v":"Clique aqui"}]
["MINERVA S.A.","MINERVA","NM",{"$f":"HYPERLINK(CONCATENATE(\"http://www.fundamentus.com.br/detalhes.php?papel=\",Tabela1[[#This Row],[Nome de Pregão]]),\"Clique aqui\")","v":"Clique aqui"}]
["MINUPAR PARTICIPACOES S.A.","MINUPAR",null,{"$f":"HYPERLINK(CONCATENATE(\"http://www.fundamentus.com.br/detalhes.php?papel=\",Tabela1[[#This Row],[Nome de Pregão]]),\"Clique aqui\")","v":"Clique aqui"}]
["MMX MINERACAO E METALICOS S.A.","MMX MINER","NM",{"$f":"HYPERLINK(CONCATENATE(\"http://www.fundamentus.com.br/detalhes.php?papel=\",Tabela1[[#This Row],[Nome de Pregão]]),\"Clique aqui\")","v":"Clique aqui"}]
["MONTEIRO ARANHA S.A.","MONT ARANHA",null,{"$f":"HYPERLINK(CONCATENATE(\"http://www.fundamentus.com.br/detalhes.php?papel=\",Tabela1[[#This Row],[Nome de Pregão]]),\"Clique aqui\")","v":"Clique aqui"}]
["MOVIDA PARTICIPACOES SA","MOVIDA","NM",{"$f":"HYPERLINK(CONCATENATE(\"http://www.fundamentus.com.br/detalhes.php?papel=\",Tabela1[[#This Row],[Nome de Pregão]]),\"Clique aqui\")","v":"Clique aqui"}]
["MRS LOGISTICA S.A.","MRS LOGIST","MB",{"$f":"HYPERLINK(CONCATENATE(\"http://www.fundamentus.com.br/detalhes.php?papel=\",Tabela1[[#This Row],[Nome de Pregão]]),\"Clique aqui\")","v":"Clique aqui"}]
["MRV ENGENHARIA E PARTICIPACOES S.A.","MRV","NM",{"$f":"HYPERLINK(CONCATENATE(\"http://www.fundamentus.com.br/detalhes.php?papel=\",Tabela1[[#This Row],[Nome de Pregão]]),\"Clique aqui\")","v":"Clique aqui"}]
["MULTIPLAN - EMPREEND IMOBILIARIOS S.A.","MULTIPLAN","N2",{"$f":"HYPERLINK(CONCATENATE(\"http://www.fundamentus.com.br/detalhes.php?papel=\",Tabela1[[#This Row],[Nome de Pregão]]),\"Clique aqui\")","v":"Clique aqui"}]
["MULTIPLUS S.A.","MULTIPLUS","NM",{"$f":"HYPERLINK(CONCATENATE(\"http://www.fundamentus.com.br/detalhes.php?papel=\",Tabela1[[#This Row],[Nome de Pregão]]),\"Clique aqui\")","v":"Clique aqui"}]
["MUNDIAL S.A. - PRODUTOS DE CONSUMO","MUNDIAL",null,{"$f":"HYPERLINK(CONCATENATE(\"http://www.fundamentus.com.br/detalhes.php?papel=\",Tabela1[[#This Row],[Nome de Pregão]]),\"Clique aqui\")","v":"Clique aqui"}]
["NADIR FIGUEIREDO IND E COM S.A.","NADIR FIGUEI",null,{"$f":"HYPERLINK(CONCATENATE(\"http://www.fundamentus.com.br/detalhes.php?papel=\",Tabela1[[#This Row],[Nome de Pregão]]),\"Clique aqui\")","v":"Clique aqui"}]
["NATURA COSMETICOS S.A.","NATURA","NM",{"$f":"HYPERLINK(CONCATENATE(\"http://www.fundamentus.com.br/detalhes.php?papel=\",Tabela1[[#This Row],[Nome de Pregão]]),\"Clique aqui\")","v":"Clique aqui"}]
["NEOENERGIA S.A.","NEOENERGIA","MB",{"$f":"HYPERLINK(CONCATENATE(\"http://www.fundamentus.com.br/detalhes.php?papel=\",Tabela1[[#This Row],[Nome de Pregão]]),\"Clique aqui\")","v":"Clique aqui"}]
["NEWTEL PARTICIPACOES S.A.","NEWTEL PART","MB",{"$f":"HYPERLINK(CONCATENATE(\"http://www.fundamentus.com.br/detalhes.php?papel=\",Tabela1[[#This Row],[Nome de Pregão]]),\"Clique aqui\")","v":"Clique aqui"}]
["NORDON INDUSTRIAS METALURGICAS S.A.","NORDON MET",null,{"$f":"HYPERLINK(CONCATENATE(\"http://www.fundamentus.com.br/detalhes.php?papel=\",Tabela1[[#This Row],[Nome de Pregão]]),\"Clique aqui\")","v":"Clique aqui"}]
["NORTEC QUÍMICA S.A.","NORTCQUIMICA","MA",{"$f":"HYPERLINK(CONCATENATE(\"http://www.fundamentus.com.br/detalhes.php?papel=\",Tabela1[[#This Row],[Nome de Pregão]]),\"Clique aqui\")","v":"Clique aqui"}]
["NOTRE DAME INTERMEDICA PARTICIPACOES SA","INTERMEDICA","NM",{"$f":"HYPERLINK(CONCATENATE(\"http://www.fundamentus.com.br/detalhes.php?papel=\",Tabela1[[#This Row],[Nome de Pregão]]),\"Clique aqui\")","v":"Clique aqui"}]
["NUTRIPLANT INDUSTRIA E COMERCIO S.A.","NUTRIPLANT","MA",{"$f":"HYPERLINK(CONCATENATE(\"http://www.fundamentus.com.br/detalhes.php?papel=\",Tabela1[[#This Row],[Nome de Pregão]]),\"Clique aqui\")","v":"Clique aqui"}]
["OCTANTE SECURITIZADORA S.A.","OCTANTE SEC",null,{"$f":"HYPERLINK(CONCATENATE(\"http://www.fundamentus.com.br/detalhes.php?papel=\",Tabela1[[#This Row],[Nome de Pregão]]),\"Clique aqui\")","v":"Clique aqui"}]
["ODONTOPREV S.A.","ODONTOPREV","NM",{"$f":"HYPERLINK(CONCATENATE(\"http://www.fundamentus.com.br/detalhes.php?papel=\",Tabela1[[#This Row],[Nome de Pregão]]),\"Clique aqui\")","v":"Clique aqui"}]
["OI S.A.","OI","N1",{"$f":"HYPERLINK(CONCATENATE(\"http://www.fundamentus.com.br/detalhes.php?papel=\",Tabela1[[#This Row],[Nome de Pregão]]),\"Clique aqui\")","v":"Clique aqui"}]
["ÓLEO E GÁS PARTICIPAÇÕES S.A.","OGX PETROLEO",null,{"$f":"HYPERLINK(CONCATENATE(\"http://www.fundamentus.com.br/detalhes.php?papel=\",Tabela1[[#This Row],[Nome de Pregão]]),\"Clique aqui\")","v":"Clique aqui"}]
["OMEGA GERAÇÃO S.A.","OMEGA GER","NM",{"$f":"HYPERLINK(CONCATENATE(\"http://www.fundamentus.com.br/detalhes.php?papel=\",Tabela1[[#This Row],[Nome de Pregão]]),\"Clique aqui\")","v":"Clique aqui"}]
["OPPORTUNITY ENERGIA E PARTICIPACOES S.A.","OPPORT ENERG","MB",{"$f":"HYPERLINK(CONCATENATE(\"http://www.fundamentus.com.br/detalhes.php?papel=\",Tabela1[[#This Row],[Nome de Pregão]]),\"Clique aqui\")","v":"Clique aqui"}]
["OSX BRASIL S.A.","OSX BRASIL","NM",{"$f":"HYPERLINK(CONCATENATE(\"http://www.fundamentus.com.br/detalhes.php?papel=\",Tabela1[[#This Row],[Nome de Pregão]]),\"Clique aqui\")","v":"Clique aqui"}]
["OURINVEST SECURITIZADORA SA","OURINVESTSEC",null,{"$f":"HYPERLINK(CONCATENATE(\"http://www.fundamentus.com.br/detalhes.php?papel=\",Tabela1[[#This Row],[Nome de Pregão]]),\"Clique aqui\")","v":"Clique aqui"}]
["OURO FINO SAUDE ANIMAL PARTICIPACOES S.A.","OUROFINO S/A","NM",{"$f":"HYPERLINK(CONCATENATE(\"http://www.fundamentus.com.br/detalhes.php?papel=\",Tabela1[[#This Row],[Nome de Pregão]]),\"Clique aqui\")","v":"Clique aqui"}]
["OURO VERDE LOCACAO E SERVICO S.A.","OURO VERDE",null,{"$f":"HYPERLINK(CONCATENATE(\"http://www.fundamentus.com.br/detalhes.php?papel=\",Tabela1[[#This Row],[Nome de Pregão]]),\"Clique aqui\")","v":"Clique aqui"}]
["PACIFIC RDSL PARTICIPAÇÕES S.A.","PACIFIC RDSL",null,{"$f":"HYPERLINK(CONCATENATE(\"http://www.fundamentus.com.br/detalhes.php?papel=\",Tabela1[[#This Row],[Nome de Pregão]]),\"Clique aqui\")","v":"Clique aqui"}]
["PANATLANTICA S.A.","PANATLANTICA",null,{"$f":"HYPERLINK(CONCATENATE(\"http://www.fundamentus.com.br/detalhes.php?papel=\",Tabela1[[#This Row],[Nome de Pregão]]),\"Clique aqui\")","v":"Clique aqui"}]
["PARANA BCO S.A.","PARANA",null,{"$f":"HYPERLINK(CONCATENATE(\"http://www.fundamentus.com.br/detalhes.php?papel=\",Tabela1[[#This Row],[Nome de Pregão]]),\"Clique aqui\")","v":"Clique aqui"}]
["PARANAPANEMA S.A.","PARANAPANEMA","NM",{"$f":"HYPERLINK(CONCATENATE(\"http://www.fundamentus.com.br/detalhes.php?papel=\",Tabela1[[#This Row],[Nome de Pregão]]),\"Clique aqui\")","v":"Clique aqui"}]
["PATRIA CIA SECURITIZADORA DE CRED IMOB","PATRIA SEC",null,{"$f":"HYPERLINK(CONCATENATE(\"http://www.fundamentus.com.br/detalhes.php?papel=\",Tabela1[[#This Row],[Nome de Pregão]]),\"Clique aqui\")","v":"Clique aqui"}]
["PBG S/A","PORTOBELLO","NM",{"$f":"HYPERLINK(CONCATENATE(\"http://www.fundamentus.com.br/detalhes.php?papel=\",Tabela1[[#This Row],[Nome de Pregão]]),\"Clique aqui\")","v":"Clique aqui"}]
["PDG COMPANHIA SECURITIZADORA","PDG SECURIT",null,{"$f":"HYPERLINK(CONCATENATE(\"http://www.fundamentus.com.br/detalhes.php?papel=\",Tabela1[[#This Row],[Nome de Pregão]]),\"Clique aqui\")","v":"Clique aqui"}]
["PDG REALTY S.A. EMPREEND E PARTICIPACOES","PDG REALT","NM",{"$f":"HYPERLINK(CONCATENATE(\"http://www.fundamentus.com.br/detalhes.php?papel=\",Tabela1[[#This Row],[Nome de Pregão]]),\"Clique aqui\")","v":"Clique aqui"}]
["PETRO RIO S.A.","PETRORIO","NM",{"$f":"HYPERLINK(CONCATENATE(\"http://www.fundamentus.com.br/detalhes.php?papel=\",Tabela1[[#This Row],[Nome de Pregão]]),\"Clique aqui\")","v":"Clique aqui"}]
["PETROBRAS DISTRIBUIDORA S/A","PETROBRAS BR","NM",{"$f":"HYPERLINK(CONCATENATE(\"http://www.fundamentus.com.br/detalhes.php?papel=\",Tabela1[[#This Row],[Nome de Pregão]]),\"Clique aqui\")","v":"Clique aqui"}]
["PETROLEO BRASILEIRO S.A. PETROBRAS","PETROBRAS","N2",{"$f":"HYPERLINK(CONCATENATE(\"http://www.fundamentus.com.br/detalhes.php?papel=\",Tabela1[[#This Row],[Nome de Pregão]]),\"Clique aqui\")","v":"Clique aqui"}]
["PETTENATI S.A. INDUSTRIA TEXTIL","PETTENATI",null,{"$f":"HYPERLINK(CONCATENATE(\"http://www.fundamentus.com.br/detalhes.php?papel=\",Tabela1[[#This Row],[Nome de Pregão]]),\"Clique aqui\")","v":"Clique aqui"}]
["PLASCAR PARTICIPACOES INDUSTRIAIS S.A.","PLASCAR PART",null,{"$f":"HYPERLINK(CONCATENATE(\"http://www.fundamentus.com.br/detalhes.php?papel=\",Tabela1[[#This Row],[Nome de Pregão]]),\"Clique aqui\")","v":"Clique aqui"}]
["POLO CAPITAL SECURITIZADORA S.A","POLO CAP SEC",null,{"$f":"HYPERLINK(CONCATENATE(\"http://www.fundamentus.com.br/detalhes.php?papel=\",Tabela1[[#This Row],[Nome de Pregão]]),\"Clique aqui\")","v":"Clique aqui"}]
["POLPAR S.A.","POLPAR",null,{"$f":"HYPERLINK(CONCATENATE(\"http://www.fundamentus.com.br/detalhes.php?papel=\",Tabela1[[#This Row],[Nome de Pregão]]),\"Clique aqui\")","v":"Clique aqui"}]
["POMIFRUTAS S/A","POMIFRUTAS","NM",{"$f":"HYPERLINK(CONCATENATE(\"http://www.fundamentus.com.br/detalhes.php?papel=\",Tabela1[[#This Row],[Nome de Pregão]]),\"Clique aqui\")","v":"Clique aqui"}]
["PORTO SEGURO S.A.","PORTO SEGURO","NM",{"$f":"HYPERLINK(CONCATENATE(\"http://www.fundamentus.com.br/detalhes.php?papel=\",Tabela1[[#This Row],[Nome de Pregão]]),\"Clique aqui\")","v":"Clique aqui"}]
["PORTO SUDESTE V.M. S.A.","PORTO VM",null,{"$f":"HYPERLINK(CONCATENATE(\"http://www.fundamentus.com.br/detalhes.php?papel=\",Tabela1[[#This Row],[Nome de Pregão]]),\"Clique aqui\")","v":"Clique aqui"}]
["POSITIVO TECNOLOGIA S.A.","POSITIVO TEC","NM",{"$f":"HYPERLINK(CONCATENATE(\"http://www.fundamentus.com.br/detalhes.php?papel=\",Tabela1[[#This Row],[Nome de Pregão]]),\"Clique aqui\")","v":"Clique aqui"}]
["PPLA PARTICIPATIONS LTD.","PPLA","DR3",{"$f":"HYPERLINK(CONCATENATE(\"http://www.fundamentus.com.br/detalhes.php?papel=\",Tabela1[[#This Row],[Nome de Pregão]]),\"Clique aqui\")","v":"Clique aqui"}]
["PRATICA KLIMAQUIP INDUSTRIA E COMERCIO SA","PRATICA","M2",{"$f":"HYPERLINK(CONCATENATE(\"http://www.fundamentus.com.br/detalhes.php?papel=\",Tabela1[[#This Row],[Nome de Pregão]]),\"Clique aqui\")","v":"Clique aqui"}]
["PRINER SERVIÇOS INDUSTRIAIS S.A.","PRINER","MA",{"$f":"HYPERLINK(CONCATENATE(\"http://www.fundamentus.com.br/detalhes.php?papel=\",Tabela1[[#This Row],[Nome de Pregão]]),\"Clique aqui\")","v":"Clique aqui"}]
["PRODUTORES ENERGET.DE MANSO S.A.- PROMAN","PROMAN","MB",{"$f":"HYPERLINK(CONCATENATE(\"http://www.fundamentus.com.br/detalhes.php?papel=\",Tabela1[[#This Row],[Nome de Pregão]]),\"Clique aqui\")","v":"Clique aqui"}]
["PROFARMA DISTRIB PROD FARMACEUTICOS S.A.","PROFARMA","NM",{"$f":"HYPERLINK(CONCATENATE(\"http://www.fundamentus.com.br/detalhes.php?papel=\",Tabela1[[#This Row],[Nome de Pregão]]),\"Clique aqui\")","v":"Clique aqui"}]
["PROMPT PARTICIPACOES S.A.","PROMPT PART","MB",{"$f":"HYPERLINK(CONCATENATE(\"http://www.fundamentus.com.br/detalhes.php?papel=\",Tabela1[[#This Row],[Nome de Pregão]]),\"Clique aqui\")","v":"Clique aqui"}]
["QGEP PARTICIPAÇÕES S.A.","QGEP PART","NM",{"$f":"HYPERLINK(CONCATENATE(\"http://www.fundamentus.com.br/detalhes.php?papel=\",Tabela1[[#This Row],[Nome de Pregão]]),\"Clique aqui\")","v":"Clique aqui"}]
["QUALICORP CONSULTORIA E CORRETORA DE SEGUROS S.A.","QUALICORP","NM",{"$f":"HYPERLINK(CONCATENATE(\"http://www.fundamentus.com.br/detalhes.php?papel=\",Tabela1[[#This Row],[Nome de Pregão]]),\"Clique aqui\")","v":"Clique aqui"}]
["QUALITY SOFTWARE S.A.","QUALITY SOFT","MA",{"$f":"HYPERLINK(CONCATENATE(\"http://www.fundamentus.com.br/detalhes.php?papel=\",Tabela1[[#This Row],[Nome de Pregão]]),\"Clique aqui\")","v":"Clique aqui"}]
["RAIA DROGASIL S.A.","RAIADROGASIL","NM",{"$f":"HYPERLINK(CONCATENATE(\"http://www.fundamentus.com.br/detalhes.php?papel=\",Tabela1[[#This Row],[Nome de Pregão]]),\"Clique aqui\")","v":"Clique aqui"}]
["RAIZEN ENERGIA S.A.","RAIZEN ENERG",null,{"$f":"HYPERLINK(CONCATENATE(\"http://www.fundamentus.com.br/detalhes.php?papel=\",Tabela1[[#This Row],[Nome de Pregão]]),\"Clique aqui\")","v":"Clique aqui"}]
["RANDON S.A. IMPLEMENTOS E PARTICIPACOES","RANDON PART","N1",{"$f":"HYPERLINK(CONCATENATE(\"http://www.fundamentus.com.br/detalhes.php?papel=\",Tabela1[[#This Row],[Nome de Pregão]]),\"Clique aqui\")","v":"Clique aqui"}]
["RB CAPITAL COMPANHIA DE SECURITIZAÇÃO","RBCAPITALRES","MB",{"$f":"HYPERLINK(CONCATENATE(\"http://www.fundamentus.com.br/detalhes.php?papel=\",Tabela1[[#This Row],[Nome de Pregão]]),\"Clique aqui\")","v":"Clique aqui"}]
["RB CAPITAL SECURITIZADORA S.A.","RBCAPITALSEC","MB",{"$f":"HYPERLINK(CONCATENATE(\"http://www.fundamentus.com.br/detalhes.php?papel=\",Tabela1[[#This Row],[Nome de Pregão]]),\"Clique aqui\")","v":"Clique aqui"}]
["REAL AI PIC SEC DE CREDITOS IMOBILIARIO S.A.","WTORRE PIC",null,{"$f":"HYPERLINK(CONCATENATE(\"http://www.fundamentus.com.br/detalhes.php?papel=\",Tabela1[[#This Row],[Nome de Pregão]]),\"Clique aqui\")","v":"Clique aqui"}]
["RECRUSUL S.A.","RECRUSUL",null,{"$f":"HYPERLINK(CONCATENATE(\"http://www.fundamentus.com.br/detalhes.php?papel=\",Tabela1[[#This Row],[Nome de Pregão]]),\"Clique aqui\")","v":"Clique aqui"}]
["REDE ENERGIA PARTICIPAÇÕES S.A.","REDE ENERGIA",null,{"$f":"HYPERLINK(CONCATENATE(\"http://www.fundamentus.com.br/detalhes.php?papel=\",Tabela1[[#This Row],[Nome de Pregão]]),\"Clique aqui\")","v":"Clique aqui"}]
["REFINARIA DE PETROLEOS MANGUINHOS S.A.","PET MANGUINH",null,{"$f":"HYPERLINK(CONCATENATE(\"http://www.fundamentus.com.br/detalhes.php?papel=\",Tabela1[[#This Row],[Nome de Pregão]]),\"Clique aqui\")","v":"Clique aqui"}]
["RENOVA ENERGIA S.A.","RENOVA","N2",{"$f":"HYPERLINK(CONCATENATE(\"http://www.fundamentus.com.br/detalhes.php?papel=\",Tabela1[[#This Row],[Nome de Pregão]]),\"Clique aqui\")","v":"Clique aqui"}]
["RESTOQUE COMÉRCIO E CONFECÇÕES DE ROUPAS S.A.","LE LIS BLANC","NM",{"$f":"HYPERLINK(CONCATENATE(\"http://www.fundamentus.com.br/detalhes.php?papel=\",Tabela1[[#This Row],[Nome de Pregão]]),\"Clique aqui\")","v":"Clique aqui"}]
["RGE SUL DISTRIBUIDORA DE ENERGIA S.A.","AES SUL",null,{"$f":"HYPERLINK(CONCATENATE(\"http://www.fundamentus.com.br/detalhes.php?papel=\",Tabela1[[#This Row],[Nome de Pregão]]),\"Clique aqui\")","v":"Clique aqui"}]
["RIO GRANDE ENERGIA S.A.","RIO GDE ENER",null,{"$f":"HYPERLINK(CONCATENATE(\"http://www.fundamentus.com.br/detalhes.php?papel=\",Tabela1[[#This Row],[Nome de Pregão]]),\"Clique aqui\")","v":"Clique aqui"}]
["RIO PARANAPANEMA ENERGIA S.A.","GER PARANAP",null,{"$f":"HYPERLINK(CONCATENATE(\"http://www.fundamentus.com.br/detalhes.php?papel=\",Tabela1[[#This Row],[Nome de Pregão]]),\"Clique aqui\")","v":"Clique aqui"}]
["RNI NEGÓCIOS IMOBILIÁRIOS S.A.","RNI","NM",{"$f":"HYPERLINK(CONCATENATE(\"http://www.fundamentus.com.br/detalhes.php?papel=\",Tabela1[[#This Row],[Nome de Pregão]]),\"Clique aqui\")","v":"Clique aqui"}]
["RODOVIAS DAS COLINAS S.A.","ROD COLINAS",null,{"$f":"HYPERLINK(CONCATENATE(\"http://www.fundamentus.com.br/detalhes.php?papel=\",Tabela1[[#This Row],[Nome de Pregão]]),\"Clique aqui\")","v":"Clique aqui"}]
["ROSSI RESIDENCIAL S.A.","ROSSI RESID","NM",{"$f":"HYPERLINK(CONCATENATE(\"http://www.fundamentus.com.br/detalhes.php?papel=\",Tabela1[[#This Row],[Nome de Pregão]]),\"Clique aqui\")","v":"Clique aqui"}]
["RUMO MALHA NORTE S.A.","ALL NORTE","MB",{"$f":"HYPERLINK(CONCATENATE(\"http://www.fundamentus.com.br/detalhes.php?papel=\",Tabela1[[#This Row],[Nome de Pregão]]),\"Clique aqui\")","v":"Clique aqui"}]
["RUMO MALHA PAULISTA S.A.","ALL PAULISTA","MB",{"$f":"HYPERLINK(CONCATENATE(\"http://www.fundamentus.com.br/detalhes.php?papel=\",Tabela1[[#This Row],[Nome de Pregão]]),\"Clique aqui\")","v":"Clique aqui"}]
["RUMO S.A.","RUMO S.A.","NM",{"$f":"HYPERLINK(CONCATENATE(\"http://www.fundamentus.com.br/detalhes.php?papel=\",Tabela1[[#This Row],[Nome de Pregão]]),\"Clique aqui\")","v":"Clique aqui"}]
["SALUS INFRAESTRUTURA PORTUARIA SA","SALUS INFRA",null,{"$f":"HYPERLINK(CONCATENATE(\"http://www.fundamentus.com.br/detalhes.php?papel=\",Tabela1[[#This Row],[Nome de Pregão]]),\"Clique aqui\")","v":"Clique aqui"}]
["SANESALTO SANEAMENTO S.A.","SANESALTO",null,{"$f":"HYPERLINK(CONCATENATE(\"http://www.fundamentus.com.br/detalhes.php?papel=\",Tabela1[[#This Row],[Nome de Pregão]]),\"Clique aqui\")","v":"Clique aqui"}]
["SANSUY S.A. INDUSTRIA DE PLASTICOS","SANSUY",null,{"$f":"HYPERLINK(CONCATENATE(\"http://www.fundamentus.com.br/detalhes.php?papel=\",Tabela1[[#This Row],[Nome de Pregão]]),\"Clique aqui\")","v":"Clique aqui"}]
["SANTHER FAB DE PAPEL STA THEREZINHA S.A.","SANTHER",null,{"$f":"HYPERLINK(CONCATENATE(\"http://www.fundamentus.com.br/detalhes.php?papel=\",Tabela1[[#This Row],[Nome de Pregão]]),\"Clique aqui\")","v":"Clique aqui"}]
["SANTO ANTONIO ENERGIA S.A.","STO ANTONIO",null,{"$f":"HYPERLINK(CONCATENATE(\"http://www.fundamentus.com.br/detalhes.php?papel=\",Tabela1[[#This Row],[Nome de Pregão]]),\"Clique aqui\")","v":"Clique aqui"}]
["SANTOS BRASIL PARTICIPACOES S.A.","SANTOS BRP","NM",{"$f":"HYPERLINK(CONCATENATE(\"http://www.fundamentus.com.br/detalhes.php?papel=\",Tabela1[[#This Row],[Nome de Pregão]]),\"Clique aqui\")","v":"Clique aqui"}]
["SAO CARLOS EMPREEND E PARTICIPACOES S.A.","SAO CARLOS","NM",{"$f":"HYPERLINK(CONCATENATE(\"http://www.fundamentus.com.br/detalhes.php?papel=\",Tabela1[[#This Row],[Nome de Pregão]]),\"Clique aqui\")","v":"Clique aqui"}]
["SAO MARTINHO S.A.","SAO MARTINHO","NM",{"$f":"HYPERLINK(CONCATENATE(\"http://www.fundamentus.com.br/detalhes.php?papel=\",Tabela1[[#This Row],[Nome de Pregão]]),\"Clique aqui\")","v":"Clique aqui"}]
["SAO PAULO TURISMO S.A.","SPTURIS",null,{"$f":"HYPERLINK(CONCATENATE(\"http://www.fundamentus.com.br/detalhes.php?papel=\",Tabela1[[#This Row],[Nome de Pregão]]),\"Clique aqui\")","v":"Clique aqui"}]
["SARAIVA LIVREIROS S.A. - EM RECUPERAÇÃO JUDICIAL","SARAIVA LIVR","N2",{"$f":"HYPERLINK(CONCATENATE(\"http://www.fundamentus.com.br/detalhes.php?papel=\",Tabela1[[#This Row],[Nome de Pregão]]),\"Clique aqui\")","v":"Clique aqui"}]
["SCHULZ S.A.","SCHULZ",null,{"$f":"HYPERLINK(CONCATENATE(\"http://www.fundamentus.com.br/detalhes.php?papel=\",Tabela1[[#This Row],[Nome de Pregão]]),\"Clique aqui\")","v":"Clique aqui"}]
["SENIOR SOLUTION S.A.","SENIOR SOL","NM",{"$f":"HYPERLINK(CONCATENATE(\"http://www.fundamentus.com.br/detalhes.php?papel=\",Tabela1[[#This Row],[Nome de Pregão]]),\"Clique aqui\")","v":"Clique aqui"}]
["SER EDUCACIONAL S.A.","SER EDUCA","NM",{"$f":"HYPERLINK(CONCATENATE(\"http://www.fundamentus.com.br/detalhes.php?papel=\",Tabela1[[#This Row],[Nome de Pregão]]),\"Clique aqui\")","v":"Clique aqui"}]
["SIDERURGICA J. L. ALIPERTI S.A.","ALIPERTI",null,{"$f":"HYPERLINK(CONCATENATE(\"http://www.fundamentus.com.br/detalhes.php?papel=\",Tabela1[[#This Row],[Nome de Pregão]]),\"Clique aqui\")","v":"Clique aqui"}]
["SLC AGRICOLA S.A.","SLC AGRICOLA","NM",{"$f":"HYPERLINK(CONCATENATE(\"http://www.fundamentus.com.br/detalhes.php?papel=\",Tabela1[[#This Row],[Nome de Pregão]]),\"Clique aqui\")","v":"Clique aqui"}]
["SMARTFIT ESCOLA DE GINÁSTICA E DANÇA S.A.","SMART FIT","M2",{"$f":"HYPERLINK(CONCATENATE(\"http://www.fundamentus.com.br/detalhes.php?papel=\",Tabela1[[#This Row],[Nome de Pregão]]),\"Clique aqui\")","v":"Clique aqui"}]
["SMILES FIDELIDADE S.A.","SMILES","NM",{"$f":"HYPERLINK(CONCATENATE(\"http://www.fundamentus.com.br/detalhes.php?papel=\",Tabela1[[#This Row],[Nome de Pregão]]),\"Clique aqui\")","v":"Clique aqui"}]
["SOMOS EDUCAÇÃO S.A.","SOMOS EDUCA","NM",{"$f":"HYPERLINK(CONCATENATE(\"http://www.fundamentus.com.br/detalhes.php?papel=\",Tabela1[[#This Row],[Nome de Pregão]]),\"Clique aqui\")","v":"Clique aqui"}]
["SONAE SIERRA BRASIL S.A.","SIERRABRASIL","NM",{"$f":"HYPERLINK(CONCATENATE(\"http://www.fundamentus.com.br/detalhes.php?papel=\",Tabela1[[#This Row],[Nome de Pregão]]),\"Clique aqui\")","v":"Clique aqui"}]
["SONDOTECNICA ENGENHARIA SOLOS S.A.","SONDOTECNICA",null,{"$f":"HYPERLINK(CONCATENATE(\"http://www.fundamentus.com.br/detalhes.php?papel=\",Tabela1[[#This Row],[Nome de Pregão]]),\"Clique aqui\")","v":"Clique aqui"}]
["SPRINGER S.A.","SPRINGER",null,{"$f":"HYPERLINK(CONCATENATE(\"http://www.fundamentus.com.br/detalhes.php?papel=\",Tabela1[[#This Row],[Nome de Pregão]]),\"Clique aqui\")","v":"Clique aqui"}]
["SPRINGS GLOBAL PARTICIPACOES S.A.","SPRINGS","NM",{"$f":"HYPERLINK(CONCATENATE(\"http://www.fundamentus.com.br/detalhes.php?papel=\",Tabela1[[#This Row],[Nome de Pregão]]),\"Clique aqui\")","v":"Clique aqui"}]
["STARA S.A. - INDÚSTRIA DE IMPLEMENTOS AGRÍCOLAS","STARA","MA",{"$f":"HYPERLINK(CONCATENATE(\"http://www.fundamentus.com.br/detalhes.php?papel=\",Tabela1[[#This Row],[Nome de Pregão]]),\"Clique aqui\")","v":"Clique aqui"}]
["STATKRAFT ENERGIAS RENOVAVEIS S.A.","STATKRAFT",null,{"$f":"HYPERLINK(CONCATENATE(\"http://www.fundamentus.com.br/detalhes.php?papel=\",Tabela1[[#This Row],[Nome de Pregão]]),\"Clique aqui\")","v":"Clique aqui"}]
["SUDESTE S.A.","SUDESTE S/A","MB",{"$f":"HYPERLINK(CONCATENATE(\"http://www.fundamentus.com.br/detalhes.php?papel=\",Tabela1[[#This Row],[Nome de Pregão]]),\"Clique aqui\")","v":"Clique aqui"}]
["SUL 116 PARTICIPACOES S.A.","SUL 116 PART","MB",{"$f":"HYPERLINK(CONCATENATE(\"http://www.fundamentus.com.br/detalhes.php?papel=\",Tabela1[[#This Row],[Nome de Pregão]]),\"Clique aqui\")","v":"Clique aqui"}]
["SUL AMERICA S.A.","SUL AMERICA","N2",{"$f":"HYPERLINK(CONCATENATE(\"http://www.fundamentus.com.br/detalhes.php?papel=\",Tabela1[[#This Row],[Nome de Pregão]]),\"Clique aqui\")","v":"Clique aqui"}]
["SUZANO HOLDING S.A.","SUZANO HOLD",null,{"$f":"HYPERLINK(CONCATENATE(\"http://www.fundamentus.com.br/detalhes.php?papel=\",Tabela1[[#This Row],[Nome de Pregão]]),\"Clique aqui\")","v":"Clique aqui"}]
["SUZANO PAPEL E CELULOSE S.A.","SUZANO PAPEL","NM",{"$f":"HYPERLINK(CONCATENATE(\"http://www.fundamentus.com.br/detalhes.php?papel=\",Tabela1[[#This Row],[Nome de Pregão]]),\"Clique aqui\")","v":"Clique aqui"}]
["T4F ENTRETENIMENTO S.A.","TIME FOR FUN","NM",{"$f":"HYPERLINK(CONCATENATE(\"http://www.fundamentus.com.br/detalhes.php?papel=\",Tabela1[[#This Row],[Nome de Pregão]]),\"Clique aqui\")","v":"Clique aqui"}]
["TARPON INVESTIMENTOS S.A.","TARPON INV","NM",{"$f":"HYPERLINK(CONCATENATE(\"http://www.fundamentus.com.br/detalhes.php?papel=\",Tabela1[[#This Row],[Nome de Pregão]]),\"Clique aqui\")","v":"Clique aqui"}]
["TAURUS ARMAS S.A.","FORJA TAURUS","N2",{"$f":"HYPERLINK(CONCATENATE(\"http://www.fundamentus.com.br/detalhes.php?papel=\",Tabela1[[#This Row],[Nome de Pregão]]),\"Clique aqui\")","v":"Clique aqui"}]
["TCP TERMINAL DE CONTEINERES DE PARANAGUA SA","TCP TERMINAL",null,{"$f":"HYPERLINK(CONCATENATE(\"http://www.fundamentus.com.br/detalhes.php?papel=\",Tabela1[[#This Row],[Nome de Pregão]]),\"Clique aqui\")","v":"Clique aqui"}]
["TEC TOY S.A.","TECTOY",null,{"$f":"HYPERLINK(CONCATENATE(\"http://www.fundamentus.com.br/detalhes.php?papel=\",Tabela1[[#This Row],[Nome de Pregão]]),\"Clique aqui\")","v":"Clique aqui"}]
["TECHNOS S.A.","TECHNOS","NM",{"$f":"HYPERLINK(CONCATENATE(\"http://www.fundamentus.com.br/detalhes.php?papel=\",Tabela1[[#This Row],[Nome de Pregão]]),\"Clique aqui\")","v":"Clique aqui"}]
["TECNISA S.A.","TECNISA","NM",{"$f":"HYPERLINK(CONCATENATE(\"http://www.fundamentus.com.br/detalhes.php?papel=\",Tabela1[[#This Row],[Nome de Pregão]]),\"Clique aqui\")","v":"Clique aqui"}]
["TECNOSOLO ENGENHARIA S.A.","TECNOSOLO",null,{"$f":"HYPERLINK(CONCATENATE(\"http://www.fundamentus.com.br/detalhes.php?papel=\",Tabela1[[#This Row],[Nome de Pregão]]),\"Clique aqui\")","v":"Clique aqui"}]
["TEGMA GESTAO LOGISTICA S.A.","TEGMA","NM",{"$f":"HYPERLINK(CONCATENATE(\"http://www.fundamentus.com.br/detalhes.php?papel=\",Tabela1[[#This Row],[Nome de Pregão]]),\"Clique aqui\")","v":"Clique aqui"}]
["TEKA-TECELAGEM KUEHNRICH S.A.","TEKA",null,{"$f":"HYPERLINK(CONCATENATE(\"http://www.fundamentus.com.br/detalhes.php?papel=\",Tabela1[[#This Row],[Nome de Pregão]]),\"Clique aqui\")","v":"Clique aqui"}]
["TEKNO S.A. - INDUSTRIA E COMERCIO","TEKNO",null,{"$f":"HYPERLINK(CONCATENATE(\"http://www.fundamentus.com.br/detalhes.php?papel=\",Tabela1[[#This Row],[Nome de Pregão]]),\"Clique aqui\")","v":"Clique aqui"}]
["TELEC BRASILEIRAS S.A. TELEBRAS","TELEBRAS",null,{"$f":"HYPERLINK(CONCATENATE(\"http://www.fundamentus.com.br/detalhes.php?papel=\",Tabela1[[#This Row],[Nome de Pregão]]),\"Clique aqui\")","v":"Clique aqui"}]
["TELEFÔNICA BRASIL S.A","TELEF BRASIL",null,{"$f":"HYPERLINK(CONCATENATE(\"http://www.fundamentus.com.br/detalhes.php?papel=\",Tabela1[[#This Row],[Nome de Pregão]]),\"Clique aqui\")","v":"Clique aqui"}]
["TERMELÉTRICA PERNAMBUCO III S.A.","TERM. PE III",null,{"$f":"HYPERLINK(CONCATENATE(\"http://www.fundamentus.com.br/detalhes.php?papel=\",Tabela1[[#This Row],[Nome de Pregão]]),\"Clique aqui\")","v":"Clique aqui"}]
["TERMINAL GARAGEM MENEZES CORTES S.A.","MENEZES CORT","MB",{"$f":"HYPERLINK(CONCATENATE(\"http://www.fundamentus.com.br/detalhes.php?papel=\",Tabela1[[#This Row],[Nome de Pregão]]),\"Clique aqui\")","v":"Clique aqui"}]
["TERMOPERNAMBUCO S.A.","TERMOPE",null,{"$f":"HYPERLINK(CONCATENATE(\"http://www.fundamentus.com.br/detalhes.php?papel=\",Tabela1[[#This Row],[Nome de Pregão]]),\"Clique aqui\")","v":"Clique aqui"}]
["TERRA SANTA AGRO S.A.","TERRA SANTA","NM",{"$f":"HYPERLINK(CONCATENATE(\"http://www.fundamentus.com.br/detalhes.php?papel=\",Tabela1[[#This Row],[Nome de Pregão]]),\"Clique aqui\")","v":"Clique aqui"}]
["TEXTIL RENAUXVIEW S.A.","TEX RENAUX",null,{"$f":"HYPERLINK(CONCATENATE(\"http://www.fundamentus.com.br/detalhes.php?papel=\",Tabela1[[#This Row],[Nome de Pregão]]),\"Clique aqui\")","v":"Clique aqui"}]
["TIM PARTICIPACOES S.A.","TIM PART S/A","NM",{"$f":"HYPERLINK(CONCATENATE(\"http://www.fundamentus.com.br/detalhes.php?papel=\",Tabela1[[#This Row],[Nome de Pregão]]),\"Clique aqui\")","v":"Clique aqui"}]
["TOTVS S.A.","TOTVS","NM",{"$f":"HYPERLINK(CONCATENATE(\"http://www.fundamentus.com.br/detalhes.php?papel=\",Tabela1[[#This Row],[Nome de Pregão]]),\"Clique aqui\")","v":"Clique aqui"}]
["TPI - TRIUNFO PARTICIP. E INVEST. S.A.","TRIUNFO PART","NM",{"$f":"HYPERLINK(CONCATENATE(\"http://www.fundamentus.com.br/detalhes.php?papel=\",Tabela1[[#This Row],[Nome de Pregão]]),\"Clique aqui\")","v":"Clique aqui"}]
["TRANSMISSORA ALIANÇA DE ENERGIA ELÉTRICA S.A.","TAESA","N2",{"$f":"HYPERLINK(CONCATENATE(\"http://www.fundamentus.com.br/detalhes.php?papel=\",Tabela1[[#This Row],[Nome de Pregão]]),\"Clique aqui\")","v":"Clique aqui"}]
["TREVISA INVESTIMENTOS S.A.","TREVISA",null,{"$f":"HYPERLINK(CONCATENATE(\"http://www.fundamentus.com.br/detalhes.php?papel=\",Tabela1[[#This Row],[Nome de Pregão]]),\"Clique aqui\")","v":"Clique aqui"}]
["TRIÂNGULO DO SOL AUTO-ESTRADAS S.A.","TRIANGULOSOL",null,{"$f":"HYPERLINK(CONCATENATE(\"http://www.fundamentus.com.br/detalhes.php?papel=\",Tabela1[[#This Row],[Nome de Pregão]]),\"Clique aqui\")","v":"Clique aqui"}]
["TRISUL S.A.","TRISUL","NM",{"$f":"HYPERLINK(CONCATENATE(\"http://www.fundamentus.com.br/detalhes.php?papel=\",Tabela1[[#This Row],[Nome de Pregão]]),\"Clique aqui\")","v":"Clique aqui"}]
["TRUE SECURITIZADORA S.A.","APICESECURIT",null,{"$f":"HYPERLINK(CONCATENATE(\"http://www.fundamentus.com.br/detalhes.php?papel=\",Tabela1[[#This Row],[Nome de Pregão]]),\"Clique aqui\")","v":"Clique aqui"}]
["TUPY S.A.","TUPY","NM",{"$f":"HYPERLINK(CONCATENATE(\"http://www.fundamentus.com.br/detalhes.php?papel=\",Tabela1[[#This Row],[Nome de Pregão]]),\"Clique aqui\")","v":"Clique aqui"}]
["ULTRAPAR PARTICIPACOES S.A.","ULTRAPAR","NM",{"$f":"HYPERLINK(CONCATENATE(\"http://www.fundamentus.com.br/detalhes.php?papel=\",Tabela1[[#This Row],[Nome de Pregão]]),\"Clique aqui\")","v":"Clique aqui"}]
["UNICASA INDÚSTRIA DE MÓVEIS S.A.","UNICASA","NM",{"$f":"HYPERLINK(CONCATENATE(\"http://www.fundamentus.com.br/detalhes.php?papel=\",Tabela1[[#This Row],[Nome de Pregão]]),\"Clique aqui\")","v":"Clique aqui"}]
["UNIDAS S.A.","UNIDAS",null,{"$f":"HYPERLINK(CONCATENATE(\"http://www.fundamentus.com.br/detalhes.php?papel=\",Tabela1[[#This Row],[Nome de Pregão]]),\"Clique aqui\")","v":"Clique aqui"}]
["UNIPAR CARBOCLORO S.A.","UNIPAR",null,{"$f":"HYPERLINK(CONCATENATE(\"http://www.fundamentus.com.br/detalhes.php?papel=\",Tabela1[[#This Row],[Nome de Pregão]]),\"Clique aqui\")","v":"Clique aqui"}]
["UPTICK PARTICIPACOES S.A.","UPTICK","MB",{"$f":"HYPERLINK(CONCATENATE(\"http://www.fundamentus.com.br/detalhes.php?papel=\",Tabela1[[#This Row],[Nome de Pregão]]),\"Clique aqui\")","v":"Clique aqui"}]
["USINAS SID DE MINAS GERAIS S.A.-USIMINAS","USIMINAS","N1",{"$f":"HYPERLINK(CONCATENATE(\"http://www.fundamentus.com.br/detalhes.php?papel=\",Tabela1[[#This Row],[Nome de Pregão]]),\"Clique aqui\")","v":"Clique aqui"}]
["VALE S.A.","VALE","NM",{"$f":"HYPERLINK(CONCATENATE(\"http://www.fundamentus.com.br/detalhes.php?papel=\",Tabela1[[#This Row],[Nome de Pregão]]),\"Clique aqui\")","v":"Clique aqui"}]
["VALID SOLUÇÕES S.A.","VALID","NM",{"$f":"HYPERLINK(CONCATENATE(\"http://www.fundamentus.com.br/detalhes.php?papel=\",Tabela1[[#This Row],[Nome de Pregão]]),\"Clique aqui\")","v":"Clique aqui"}]
["VERT COMPANHIA SECURITIZADORA","VERTCIASEC",null,{"$f":"HYPERLINK(CONCATENATE(\"http://www.fundamentus.com.br/detalhes.php?papel=\",Tabela1[[#This Row],[Nome de Pregão]]),\"Clique aqui\")","v":"Clique aqui"}]
["VIA VAREJO S.A.","VIAVAREJO","NM",{"$f":"HYPERLINK(CONCATENATE(\"http://www.fundamentus.com.br/detalhes.php?papel=\",Tabela1[[#This Row],[Nome de Pregão]]),\"Clique aqui\")","v":"Clique aqui"}]
["VIVER INCORPORADORA E CONSTRUTORA S.A.","VIVER","NM",{"$f":"HYPERLINK(CONCATENATE(\"http://www.fundamentus.com.br/detalhes.php?papel=\",Tabela1[[#This Row],[Nome de Pregão]]),\"Clique aqui\")","v":"Clique aqui"}]
["VULCABRAS/AZALEIA S.A.","VULCABRAS","NM",{"$f":"HYPERLINK(CONCATENATE(\"http://www.fundamentus.com.br/detalhes.php?papel=\",Tabela1[[#This Row],[Nome de Pregão]]),\"Clique aqui\")","v":"Clique aqui"}]
["WEG S.A.","WEG","NM",{"$f":"HYPERLINK(CONCATENATE(\"http://www.fundamentus.com.br/detalhes.php?papel=\",Tabela1[[#This Row],[Nome de Pregão]]),\"Clique aqui\")","v":"Clique aqui"},"SIM"]
["WETZEL S.A.","WETZEL S/A",null,{"$f":"HYPERLINK(CONCATENATE(\"http://www.fundamentus.com.br/detalhes.php?papel=\",Tabela1[[#This Row],[Nome de Pregão]]),\"Clique aqui\")","v":"Clique aqui"}]
["WHIRLPOOL S.A.","WHIRLPOOL",null,{"$f":"HYPERLINK(CONCATENATE(\"http://www.fundamentus.com.br/detalhes.php?papel=\",Tabela1[[#This Row],[Nome de Pregão]]),\"Clique aqui\")","v":"Clique aqui"}]
["WILSON SONS LTD.","WILSON SONS","DR3",{"$f":"HYPERLINK(CONCATENATE(\"http://www.fundamentus.com.br/detalhes.php?papel=\",Tabela1[[#This Row],[Nome de Pregão]]),\"Clique aqui\")","v":"Clique aqui"}]
["WIZ SOLUÇÕES E CORRETAGEM DE SEGUROS S.A.","WIZ S.A.","NM",{"$f":"HYPERLINK(CONCATENATE(\"http://www.fundamentus.com.br/detalhes.php?papel=\",Tabela1[[#This Row],[Nome de Pregão]]),\"Clique aqui\")","v":"Clique aqui"},"SIM"]
["WLM PART. E COMÉRCIO DE MÁQUINAS E VEÍCULOS S.A.","WLM IND COM",null,{"$f":"HYPERLINK(CONCATENATE(\"http://www.fundamentus.com.br/detalhes.php?papel=\",Tabela1[[#This Row],[Nome de Pregão]]),\"Clique aqui\")","v":"Clique aqui"}]

{"sheet":"Mercado Internacional (BDRs)","index":2,"n_rows":131,"n_cols":5,"rows_kept":131}
[null,"Lista atualizada em","2019-01-14",null,"Brazilian Depositary Receipts - BDRs são certificados de depósito, emitidos e negociados no Brasil, com lastro em valores mobiliários de emissão de companhias estrangeiras."]
["BDRs Não Patrocinados listados",null,"Fonte",null,"O BDR patrocinado é emitido por uma instituição depositária contratada pela companhia estrangeira emissora dos valores mobiliários e pode ser classificado como Nível I, Nível II ou Nível III."]
[{"$nulls":4},"O BDR não patrocinado é emitido por uma instituição depositária, sem envolvimento da companhia estrangeira emissora dos valores mobiliários lastro, e só pode ser classificado como Nível I."]
["Razão Social","Segmento","BRDs Relevante"]
["3M COMPANY","DRN"]
["ABBOTT LABORATORIES","DRN"]
["ABBVIE INC.","DRN"]
["ACCENTURE PLC","DRN"]
["AETNA INC.","DRN"]
["ALPHABET INC.","DRN"]
["AMAZON.COM, INC","DRN"]
["AMERICAN AIRLINES GROUP INC.","DRN"]
["AMERICAN EXPRESS COMPANY","DRN"]
["AMERICAN INTERNATIONAL GROUP INC.","DRN"]
["AMGEN INC.","DRN"]
["ANDEAVOR","DRN"]
["APPLE INC.","DRN"]
["ARCELOR MITTAL","DRN"]
["ARCONIC INC.","DRN"]
["AT&T INC.","DRN"]
["AVON PRODUCTS, INC.","DRN"]
["BANK OF AMERICA CORPORATION","DRN"]
["BCO PATAGONIA S.A.","DR3"]
["BERKSHIRE HATHAWAY INC.","DRN"]
["BEST BUY CO., INC.","DRN"]
["BIOGEN INC.","DRN"]
["BIOTOSCANA INVESTMENTS S.A.","DR3","Sim"]
["BLACKROCK, INC.","DRN"]
["BOSTON PROPERTIES, INC","DRN"]
["BRISTOL-MYERS SQUIBB COMPANY","DRN"]
["CATERPILLAR INC.","DRN"]
["CELGENE CORPORATION","DRN"]
["CHESAPEAKE ENERGY CORPORATION","DRN"]
["CHEVRON CORPORATION","DRN"]
["CISCO SYSTEMS, INC.","DRN"]
["CITIGROUP INC.","DRN"]
["COGNIZANT TECHNOLOGY SOLUTIONS","DRN"]
["COLGATE-PALMOLIVE COMPANY","DRN"]
["COMCAST CORPORATION","DRN"]
["CONOCOPHILLIPS","DRN"]
["COSTCO WHOLESALE CORPORATION","DRN"]
["COTY, INC.","DRN"]
["CVS HEALTH CORPORATION","DRN"]
["DANAHER CORPORATION","DRN"]
["DELTA AIR LINES, INC.","DRN"]
["DOWDUPONT INC.","DRN"]
["DUKE ENERGY CORPORATION","DRN"]
["EBAY INC.","DRN"]
["ELI LILLY AND COMPANY","DRN"]
["EXPRESS SCRIPTS HOLDING COMPANY","DRN"]
["EXXON MOBIL CORPORATION","DRN"]
["FACEBOOK, INC.","DRN"]
["FEDEX CORPORATION","DRN"]
["FIRST SOLAR, INC","DRN"]
["FOMENTO ECONOMICO MEXICANO SAB DE CV - FEMSA","DRN"]
["FORD MOTORS","DRN"]
["FREEPORT - MCMORAN COPPER GOLD INC.","DRN"]
["GENERAL DYNAMICS CORP.","DRN"]
["GENERAL ELECTRIC COMPANY","DRN"]
["GENERAL MOTORS COMPANY","DRN"]
["GILEAD SCIENCES, INC.","DRN"]
["GOLDMAN SACHS GROUP INC.","DRN"]
["GOPRO, INC.","DRN"]
["GP INVESTMENTS, LTD.","DR3","Sim"]
["HALLIBURTON COMPANY","DRN"]
["HEWLETT-PACKARD COMPANY","DRN"]
["HONEYWELL INTERNATIONAL INC.","DRN"]
["INTEL CORPORATION","DRN"]
["INTERNATIONAL BUSINESS MACHINES CORPORATION","DRN"]
["J. C. PENNEY COMPANY, INC.","DRN"]
["JOHNSON & JOHNSON","DRN"]
["JPMORGAN CHASE & CO.","DRN"]
["KIMBERLY-CLARK CORP","DRN"]
["L BRANDS, INC.","DRN"]
["LOCKHEED MARTIN CORPORATION","DRN"]
["MACY S INC.","DRN"]
["MASTERCARD INCORPORATED","DRN"]
["MCDONALDS CORP.","DRN"]
["MEDTRONIC PUBLIC LIMITED COMPANY","DRN"]
["MERCK CO., INC.","DRN"]
["METLIFE INC","DRN"]
["MICROSOFT CORPORATION","DRN"]
["MONDELEZ INTERNATIONAL, INC","DRN"]
["MORGAN STANLEY","DRN"]
["NETFLIX, INC.","DRN"]
["NIKE INC","DRN"]
["ORACLE CORPORATION","DRN"]
["PEPSICO, INC.","DRN"]
["PFIZER INC.","DRN"]
["PPLA PARTICIPATIONS LTD.","DR3"]
["PROCTER GAMBLE COMPANY","DRN"]
["QUALCOMM INC.","DRN"]
["ROSS STORES, INC.","DRN"]
["SALESFORCE.COM, INC.","DRN"]
["SANCHEZ ENERGY CORPORATION","DRN"]
["SCHLUMBERGER LIMITED","DRN"]
["SPRINT CORPORATION","DRN"]
["STARBUCKS CORPORATION","DRN"]
["TARGET CORP","DRN"]
["TESLA, INC","DRN"]
["TEXAS INSTRUMENTS INC.","DRN"]
["THE BANK OF NEW YORK MELLON CORPORATION","DRN"]
["THE BOEING COMPANY","DRN"]
["THE CHARLES SCHWAB CORPORATION","DRN"]
["THE COCA-COLA COMPANY","DRN"]
["THE GAP, INC.","DRN"]
["THE HERSHEY COMPANY","DRN"]
["THE HOME DEPOT","DRN"]
["THE KRAFT HEINZ COMPANY","DRN"]
["THE MOSAIC COMPANY","DRN"]
["THE TRAVELERS COMPANIES, INC","DRN"]
["THE WALT DISNEY COMPANY","DRN"]
["THE WESTERN UNION COMPANY","DRN"]
["THERMO FISHER SCIENTIFIC, INC.","DRN"]
["TIFFANY CO","DRN"]
["TIME WARNER INC.","DRN"]
["TRANSOCEAN LTD.","DRN"]
["TWITTER, INC.","DRN"]
["U.S. BANCORP","DRN"]
["UBS GROUP AG","DRN"]
["UNION PACIFIC CORPORATION","DRN"]
["UNITED PARCEL SERVICE, INC.","DRN"]
["UNITED STATES STEEL CORPORATION","DRN"]
["UNITED TECHNOLOGIES CORP","DRN"]
["VALERO ENERGY CORPORATION","DRN"]
["VERIZON COMMUNICATIONS INC.","DRN"]
["VISA INC.","DRN"]
["WALMART INC.","DRN"]
["WELLS FARGO COMPANY","DRN"]
["WILSON SONS LTD.","DR3","Sim"]
["XEROX CORPORATION","DRN"]